Workbook

Sheet Rates
A1: Medicare Part B Codes
A2: Pricing Effective January 1, 2023
A5: Enter the Zip Code ---------> | C5: 75001
B7: State: | C7: =INDEX(ldata,MATCH($C$5,Lrow,),MATCH("State",Lcol,)) -> TX
B8: Locality: | C8: =INDEX(ldata,MATCH($C$5,Lrow,),MATCH("Locality",Lcol,)) -> 11
D11: Full | F11: MPPR
A12: Code | B12: Description | D12: Price | F12: Reduced
A13: 29126 | B13: =INDEX(data,MATCH(A13,row,),MATCH($B$12,col,)) -> Apply forearm splint | D13: =SUMIFS(Data!D:D,Data!$F:$F,$C$7&$C$8,Data!$B:$B,$A13) -> 79.26 | F13: =SUMIFS(Data!E:E,Data!$F:$F,$C$7&$C$8,Data!$B:$B,$A13) -> 52.55
A14: 29130 | B14: =INDEX(data,MATCH(A14,row,),MATCH($B$12,col,)) -> Application of finger splint | D14: =SUMIFS(Data!D:D,Data!$F:$F,$C$7&$C$8,Data!$B:$B,$A14) -> 42.39 | F14: =SUMIFS(Data!E:E,Data!$F:$F,$C$7&$C$8,Data!$B:$B,$A14) -> 31.01
A15: 29131 | B15: =INDEX(data,MATCH(A15,row,),MATCH($B$12,col,)) -> Application of finger splint | D15: =SUMIFS(Data!D:D,Data!$F:$F,$C$7&$C$8,Data!$B:$B,$A15) -> 54.45 | F15: =SUMIFS(Data!E:E,Data!$F:$F,$C$7&$C$8,Data!$B:$B,$A15) -> 37.91
A16: 29505 | B16: =INDEX(data,MATCH(A16,row,),MATCH($B$12,col,)) -> Application long leg splint | D16: =SUMIFS(Data!D:D,Data!$F:$F,$C$7&$C$8,Data!$B:$B,$A16) -> 90.43 | F16: =SUMIFS(Data!E:E,Data!$F:$F,$C$7&$C$8,Data!$B:$B,$A16) -> 58.55
A17: 29515 | B17: =INDEX(data,MATCH(A17,row,),MATCH($B$12,col,)) -> Application lower leg splint | D17: =SUMIFS(Data!D:D,Data!$F:$F,$C$7&$C$8,Data!$B:$B,$A17) -> 72.96 | F17: =SUMIFS(Data!E:E,Data!$F:$F,$C$7&$C$8,Data!$B:$B,$A17) -> 50.38
A18: 29580 | B18: =INDEX(data,MATCH(A18,row,),MATCH($B$12,col,)) -> Application of paste boot | D18: =SUMIFS(Data!D:D,Data!$F:$F,$C$7&$C$8,Data!$B:$B,$A18) -> 64.41 | F18: =SUMIFS(Data!E:E,Data!$F:$F,$C$7&$C$8,Data!$B:$B,$A18) -> 42.53
A19: 90901 | B19: =INDEX(data,MATCH(A19,row,),MATCH($B$12,col,)) -> Biofeedback train any meth | D19: =SUMIFS(Data!D:D,Data!$F:$F,$C$7&$C$8,Data!$B:$B,$A19) -> 41.94 | F19: =SUMIFS(Data!E:E,Data!$F:$F,$C$7&$C$8,Data!$B:$B,$A19) -> 28.16
A20: 92507 | B20: =INDEX(data,MATCH(A20,row,),MATCH($B$12,col,)) -> Speech/hearing therapy | D20: =SUMIFS(Data!D:D,Data!$F:$F,$C$7&$C$8,Data!$B:$B,$A20) -> 78.16 | F20: =SUMIFS(Data!E:E,Data!$F:$F,$C$7&$C$8,Data!$B:$B,$A20) -> 61.96
A21: 92508 | B21: =INDEX(data,MATCH(A21,row,),MATCH($B$12,col,)) -> Speech/hearing therapy | D21: =SUMIFS(Data!D:D,Data!$F:$F,$C$7&$C$8,Data!$B:$B,$A21) -> 24.37 | F21: =SUMIFS(Data!E:E,Data!$F:$F,$C$7&$C$8,Data!$B:$B,$A21) -> 17.99
A22: 92511 | B22: =INDEX(data,MATCH(A22,row,),MATCH($B$12,col,)) -> Nasopharyngoscopy | D22: =SUMIFS(Data!D:D,Data!$F:$F,$C$7&$C$8,Data!$B:$B,$A22) -> 121.59 | F22: =SUMIFS(Data!E:E,Data!$F:$F,$C$7&$C$8,Data!$B:$B,$A22) -> 71.79
A23: 92521 | B23: =INDEX(data,MATCH(A23,row,),MATCH($B$12,col,)) -> Evaluation of speech fluency | D23: =SUMIFS(Data!D:D,Data!$F:$F,$C$7&$C$8,Data!$B:$B,$A23) -> 135.85 | F23: =SUMIFS(Data!E:E,Data!$F:$F,$C$7&$C$8,Data!$B:$B,$A23) -> 107.25
A24: 92522 | B24: =INDEX(data,MATCH(A24,row,),MATCH($B$12,col,)) -> Evaluate speech production | D24: =SUMIFS(Data!D:D,Data!$F:$F,$C$7&$C$8,Data!$B:$B,$A24) -> 113.35 | F24: =SUMIFS(Data!E:E,Data!$F:$F,$C$7&$C$8,Data!$B:$B,$A24) -> 90.6
A25: 92523 | B25: =INDEX(data,MATCH(A25,row,),MATCH($B$12,col,)) -> Speech sound lang comprehen | D25: =SUMIFS(Data!D:D,Data!$F:$F,$C$7&$C$8,Data!$B:$B,$A25) -> 232.97 | F25: =SUMIFS(Data!E:E,Data!$F:$F,$C$7&$C$8,Data!$B:$B,$A25) -> 183.86
A26: 92524 | B26: =INDEX(data,MATCH(A26,row,),MATCH($B$12,col,)) -> Behavral qualit analys voice | D26: =SUMIFS(Data!D:D,Data!$F:$F,$C$7&$C$8,Data!$B:$B,$A26) -> 111.97 | F26: =SUMIFS(Data!E:E,Data!$F:$F,$C$7&$C$8,Data!$B:$B,$A26) -> 89.91
A27: 92526 | B27: =INDEX(data,MATCH(A27,row,),MATCH($B$12,col,)) -> Oral function therapy | D27: =SUMIFS(Data!D:D,Data!$F:$F,$C$7&$C$8,Data!$B:$B,$A27) -> 86.78 | F27: =SUMIFS(Data!E:E,Data!$F:$F,$C$7&$C$8,Data!$B:$B,$A27) -> 66.96
A28: 92597 | B28: =INDEX(data,MATCH(A28,row,),MATCH($B$12,col,)) -> Oral speech device eval | D28: =SUMIFS(Data!D:D,Data!$F:$F,$C$7&$C$8,Data!$B:$B,$A28) -> 73.34 | F28: =SUMIFS(Data!E:E,Data!$F:$F,$C$7&$C$8,Data!$B:$B,$A28) -> 58.86
A29: 92605 | B29: =INDEX(data,MATCH(A29,row,),MATCH($B$12,col,)) -> Ex for nonspeech device rx | D29: =SUMIFS(Data!D:D,Data!$F:$F,$C$7&$C$8,Data!$B:$B,$A29) -> 92.25 | F29: =SUMIFS(Data!E:E,Data!$F:$F,$C$7&$C$8,Data!$B:$B,$A29) -> 77.61
A30: 92606 | B30: =INDEX(data,MATCH(A30,row,),MATCH($B$12,col,)) -> Non-speech device service | D30: =SUMIFS(Data!D:D,Data!$F:$F,$C$7&$C$8,Data!$B:$B,$A30) -> 80.5 | F30: =SUMIFS(Data!E:E,Data!$F:$F,$C$7&$C$8,Data!$B:$B,$A30) -> 65.34
A31: 92607 | B31: =INDEX(data,MATCH(A31,row,),MATCH($B$12,col,)) -> Ex for speech device rx 1hr | D31: =SUMIFS(Data!D:D,Data!$F:$F,$C$7&$C$8,Data!$B:$B,$A31) -> 126.75 | F31: =SUMIFS(Data!E:E,Data!$F:$F,$C$7&$C$8,Data!$B:$B,$A31) -> 95.74
A32: 92608 | B32: =INDEX(data,MATCH(A32,row,),MATCH($B$12,col,)) -> Ex for speech device rx addl | D32: =SUMIFS(Data!D:D,Data!$F:$F,$C$7&$C$8,Data!$B:$B,$A32) -> 49.76 | F32: =SUMIFS(Data!E:E,Data!$F:$F,$C$7&$C$8,Data!$B:$B,$A32) -> 37.19
A33: 92609 | B33: =INDEX(data,MATCH(A33,row,),MATCH($B$12,col,)) -> Use of speech device service | D33: =SUMIFS(Data!D:D,Data!$F:$F,$C$7&$C$8,Data!$B:$B,$A33) -> 105.73 | F33: =SUMIFS(Data!E:E,Data!$F:$F,$C$7&$C$8,Data!$B:$B,$A33) -> 79.2
A34: 92610 | B34: =INDEX(data,MATCH(A34,row,),MATCH($B$12,col,)) -> Evaluate swallowing function | D34: =SUMIFS(Data!D:D,Data!$F:$F,$C$7&$C$8,Data!$B:$B,$A34) -> 86.78 | F34: =SUMIFS(Data!E:E,Data!$F:$F,$C$7&$C$8,Data!$B:$B,$A34) -> 66.27
A35: 95851 | B35: =INDEX(data,MATCH(A35,row,),MATCH($B$12,col,)) -> Range of motion measurements | D35: =SUMIFS(Data!D:D,Data!$F:$F,$C$7&$C$8,Data!$B:$B,$A35) -> 21.61 | F35: =SUMIFS(Data!E:E,Data!$F:$F,$C$7&$C$8,Data!$B:$B,$A35) -> 13.68
A36: 96105 | B36: =INDEX(data,MATCH(A36,row,),MATCH($B$12,col,)) -> Assessment of aphasia | D36: =SUMIFS(Data!D:D,Data!$F:$F,$C$7&$C$8,Data!$B:$B,$A36) -> 98.91 | F36: =SUMIFS(Data!E:E,Data!$F:$F,$C$7&$C$8,Data!$B:$B,$A36) -> 80.81
A37: 96110 | B37: =INDEX(data,MATCH(A37,row,),MATCH($B$12,col,)) -> Developmental screen w/score | D37: =SUMIFS(Data!D:D,Data!$F:$F,$C$7&$C$8,Data!$B:$B,$A37) -> 10.92 | F37: =SUMIFS(Data!E:E,Data!$F:$F,$C$7&$C$8,Data!$B:$B,$A37) -> 5.58
A38: 96112 | B38: =INDEX(data,MATCH(A38,row,),MATCH($B$12,col,)) -> Devel tst phys/qhp 1st hr | D38: =SUMIFS(Data!D:D,Data!$F:$F,$C$7&$C$8,Data!$B:$B,$A38) -> 127.44 | F38: =SUMIFS(Data!E:E,Data!$F:$F,$C$7&$C$8,Data!$B:$B,$A38) -> 109.52
A39: 96113 | B39: =INDEX(data,MATCH(A39,row,),MATCH($B$12,col,)) -> Devel tst phys/qhp ea addl | D39: =SUMIFS(Data!D:D,Data!$F:$F,$C$7&$C$8,Data!$B:$B,$A39) -> 60.38 | F39: =SUMIFS(Data!E:E,Data!$F:$F,$C$7&$C$8,Data!$B:$B,$A39) -> 50.9
A40: 96116 | B40: =INDEX(data,MATCH(A40,row,),MATCH($B$12,col,)) -> Nubhvl xm phys/qhp 1st hr | D40: =SUMIFS(Data!D:D,Data!$F:$F,$C$7&$C$8,Data!$B:$B,$A40) -> 93.94 | F40: =SUMIFS(Data!E:E,Data!$F:$F,$C$7&$C$8,Data!$B:$B,$A40) -> 79.99
A41: 96125 | B41: =INDEX(data,MATCH(A41,row,),MATCH($B$12,col,)) -> Cognitive test by hc pro | D41: =SUMIFS(Data!D:D,Data!$F:$F,$C$7&$C$8,Data!$B:$B,$A41) -> 104.49 | F41: =SUMIFS(Data!E:E,Data!$F:$F,$C$7&$C$8,Data!$B:$B,$A41) -> 82.26
A42: 97012 | B42: =INDEX(data,MATCH(A42,row,),MATCH($B$12,col,)) -> Mechanical traction therapy | D42: =SUMIFS(Data!D:D,Data!$F:$F,$C$7&$C$8,Data!$B:$B,$A42) -> 14.72 | F42: =SUMIFS(Data!E:E,Data!$F:$F,$C$7&$C$8,Data!$B:$B,$A42) -> 11.79
A43: 97016 | B43: =INDEX(data,MATCH(A43,row,),MATCH($B$12,col,)) -> Vasopneumatic device therapy | D43: =SUMIFS(Data!D:D,Data!$F:$F,$C$7&$C$8,Data!$B:$B,$A43) -> 11.96 | F43: =SUMIFS(Data!E:E,Data!$F:$F,$C$7&$C$8,Data!$B:$B,$A43) -> 9.2
A44: 97018 | B44: =INDEX(data,MATCH(A44,row,),MATCH($B$12,col,)) -> Paraffin bath therapy | D44: =SUMIFS(Data!D:D,Data!$F:$F,$C$7&$C$8,Data!$B:$B,$A44) -> 5.76 | F44: =SUMIFS(Data!E:E,Data!$F:$F,$C$7&$C$8,Data!$B:$B,$A44) -> 4.03
A45: 97022 | B45: =INDEX(data,MATCH(A45,row,),MATCH($B$12,col,)) -> Whirlpool therapy | D45: =SUMIFS(Data!D:D,Data!$F:$F,$C$7&$C$8,Data!$B:$B,$A45) -> 17.47 | F45: =SUMIFS(Data!E:E,Data!$F:$F,$C$7&$C$8,Data!$B:$B,$A45) -> 11.79
A46: 97024 | B46: =INDEX(data,MATCH(A46,row,),MATCH($B$12,col,)) -> Diathermy eg microwave | D46: =SUMIFS(Data!D:D,Data!$F:$F,$C$7&$C$8,Data!$B:$B,$A46) -> 7.48 | F46: =SUMIFS(Data!E:E,Data!$F:$F,$C$7&$C$8,Data!$B:$B,$A46) -> 4.89
A47: 97026 | B47: =INDEX(data,MATCH(A47,row,),MATCH($B$12,col,)) -> Infrared therapy | D47: =SUMIFS(Data!D:D,Data!$F:$F,$C$7&$C$8,Data!$B:$B,$A47) -> 6.79 | F47: =SUMIFS(Data!E:E,Data!$F:$F,$C$7&$C$8,Data!$B:$B,$A47) -> 4.55
A48: 97028 | B48: =INDEX(data,MATCH(A48,row,),MATCH($B$12,col,)) -> Ultraviolet therapy | D48: =SUMIFS(Data!D:D,Data!$F:$F,$C$7&$C$8,Data!$B:$B,$A48) -> 8.51 | F48: =SUMIFS(Data!E:E,Data!$F:$F,$C$7&$C$8,Data!$B:$B,$A48) -> 5.76
A49: 97032 | B49: =INDEX(data,MATCH(A49,row,),MATCH($B$12,col,)) -> Electrical stimulation | D49: =SUMIFS(Data!D:D,Data!$F:$F,$C$7&$C$8,Data!$B:$B,$A49) -> 14.72 | F49: =SUMIFS(Data!E:E,Data!$F:$F,$C$7&$C$8,Data!$B:$B,$A49) -> 11.79
A50: 97033 | B50: =INDEX(data,MATCH(A50,row,),MATCH($B$12,col,)) -> Electric current therapy | D50: =SUMIFS(Data!D:D,Data!$F:$F,$C$7&$C$8,Data!$B:$B,$A50) -> 20.23 | F50: =SUMIFS(Data!E:E,Data!$F:$F,$C$7&$C$8,Data!$B:$B,$A50) -> 14.72
A51: 97034 | B51: =INDEX(data,MATCH(A51,row,),MATCH($B$12,col,)) -> Contrast bath therapy | D51: =SUMIFS(Data!D:D,Data!$F:$F,$C$7&$C$8,Data!$B:$B,$A51) -> 14.72 | F51: =SUMIFS(Data!E:E,Data!$F:$F,$C$7&$C$8,Data!$B:$B,$A51) -> 11.1
A52: 97035 | B52: =INDEX(data,MATCH(A52,row,),MATCH($B$12,col,)) -> Ultrasound therapy | D52: =SUMIFS(Data!D:D,Data!$F:$F,$C$7&$C$8,Data!$B:$B,$A52) -> 14.72 | F52: =SUMIFS(Data!E:E,Data!$F:$F,$C$7&$C$8,Data!$B:$B,$A52) -> 11.1
A53: 97036 | B53: =INDEX(data,MATCH(A53,row,),MATCH($B$12,col,)) -> Hydrotherapy | D53: =SUMIFS(Data!D:D,Data!$F:$F,$C$7&$C$8,Data!$B:$B,$A53) -> 35.74 | F53: =SUMIFS(Data!E:E,Data!$F:$F,$C$7&$C$8,Data!$B:$B,$A53) -> 22.81
A54: 97110 | B54: =INDEX(data,MATCH(A54,row,),MATCH($B$12,col,)) -> Therapeutic exercises | D54: =SUMIFS(Data!D:D,Data!$F:$F,$C$7&$C$8,Data!$B:$B,$A54) -> 30.22 | F54: =SUMIFS(Data!E:E,Data!$F:$F,$C$7&$C$8,Data!$B:$B,$A54) -> 22.99
A55: 97112 | B55: =INDEX(data,MATCH(A55,row,),MATCH($B$12,col,)) -> Neuromuscular reeducation | D55: =SUMIFS(Data!D:D,Data!$F:$F,$C$7&$C$8,Data!$B:$B,$A55) -> 34.7 | F55: =SUMIFS(Data!E:E,Data!$F:$F,$C$7&$C$8,Data!$B:$B,$A55) -> 26.09
A56: 97113 | B56: =INDEX(data,MATCH(A56,row,),MATCH($B$12,col,)) -> Aquatic therapy/exercises | D56: =SUMIFS(Data!D:D,Data!$F:$F,$C$7&$C$8,Data!$B:$B,$A56) -> 37.81 | F56: =SUMIFS(Data!E:E,Data!$F:$F,$C$7&$C$8,Data!$B:$B,$A56) -> 27.29
A57: 97116 | B57: =INDEX(data,MATCH(A57,row,),MATCH($B$12,col,)) -> Gait training therapy | D57: =SUMIFS(Data!D:D,Data!$F:$F,$C$7&$C$8,Data!$B:$B,$A57) -> 30.22 | F57: =SUMIFS(Data!E:E,Data!$F:$F,$C$7&$C$8,Data!$B:$B,$A57) -> 22.99
A58: 97124 | B58: =INDEX(data,MATCH(A58,row,),MATCH($B$12,col,)) -> Massage therapy | D58: =SUMIFS(Data!D:D,Data!$F:$F,$C$7&$C$8,Data!$B:$B,$A58) -> 30.91 | F58: =SUMIFS(Data!E:E,Data!$F:$F,$C$7&$C$8,Data!$B:$B,$A58) -> 21.61
A59: 97129 | B59: =INDEX(data,MATCH(A59,row,),MATCH($B$12,col,)) -> Ther ivntj 1st 15 min | D59: =SUMIFS(Data!D:D,Data!$F:$F,$C$7&$C$8,Data!$B:$B,$A59) -> 22.99 | F59: =SUMIFS(Data!E:E,Data!$F:$F,$C$7&$C$8,Data!$B:$B,$A59) -> 20.23
A60: 97130 | B60: =INDEX(data,MATCH(A60,row,),MATCH($B$12,col,)) -> Ther ivntj ea addl 15 min | D60: =SUMIFS(Data!D:D,Data!$F:$F,$C$7&$C$8,Data!$B:$B,$A60) -> 21.95 | F60: =SUMIFS(Data!E:E,Data!$F:$F,$C$7&$C$8,Data!$B:$B,$A60) -> 19.37
A61: 97140 | B61: =INDEX(data,MATCH(A61,row,),MATCH($B$12,col,)) -> Manual therapy 1/> regions | D61: =SUMIFS(Data!D:D,Data!$F:$F,$C$7&$C$8,Data!$B:$B,$A61) -> 27.81 | F61: =SUMIFS(Data!E:E,Data!$F:$F,$C$7&$C$8,Data!$B:$B,$A61) -> 21.44
A62: 97150 | B62: =INDEX(data,MATCH(A62,row,),MATCH($B$12,col,)) -> Group therapeutic procedures | D62: =SUMIFS(Data!D:D,Data!$F:$F,$C$7&$C$8,Data!$B:$B,$A62) -> 18.16 | F62: =SUMIFS(Data!E:E,Data!$F:$F,$C$7&$C$8,Data!$B:$B,$A62) -> 14.2
A63: 97161 | B63: =INDEX(data,MATCH(A63,row,),MATCH($B$12,col,)) -> Pt eval low complex 20 min | D63: =SUMIFS(Data!D:D,Data!$F:$F,$C$7&$C$8,Data!$B:$B,$A63) -> 102.98 | F63: =SUMIFS(Data!E:E,Data!$F:$F,$C$7&$C$8,Data!$B:$B,$A63) -> 78.51
A64: 97162 | B64: =INDEX(data,MATCH(A64,row,),MATCH($B$12,col,)) -> Pt eval mod complex 30 min | D64: =SUMIFS(Data!D:D,Data!$F:$F,$C$7&$C$8,Data!$B:$B,$A64) -> 102.98 | F64: =SUMIFS(Data!E:E,Data!$F:$F,$C$7&$C$8,Data!$B:$B,$A64) -> 78.51
A65: 97163 | B65: =INDEX(data,MATCH(A65,row,),MATCH($B$12,col,)) -> Pt eval high complex 45 min | D65: =SUMIFS(Data!D:D,Data!$F:$F,$C$7&$C$8,Data!$B:$B,$A65) -> 102.98 | F65: =SUMIFS(Data!E:E,Data!$F:$F,$C$7&$C$8,Data!$B:$B,$A65) -> 78.51
A66: 97164 | B66: =INDEX(data,MATCH(A66,row,),MATCH($B$12,col,)) -> Pt re-eval est plan care | D66: =SUMIFS(Data!D:D,Data!$F:$F,$C$7&$C$8,Data!$B:$B,$A66) -> 71.27 | F66: =SUMIFS(Data!E:E,Data!$F:$F,$C$7&$C$8,Data!$B:$B,$A66) -> 52.66
A67: 97165 | B67: =INDEX(data,MATCH(A67,row,),MATCH($B$12,col,)) -> Ot eval low complex 30 min | D67: =SUMIFS(Data!D:D,Data!$F:$F,$C$7&$C$8,Data!$B:$B,$A67) -> 102.98 | F67: =SUMIFS(Data!E:E,Data!$F:$F,$C$7&$C$8,Data!$B:$B,$A67) -> 78.51
A68: 97166 | B68: =INDEX(data,MATCH(A68,row,),MATCH($B$12,col,)) -> Ot eval mod complex 45 min | D68: =SUMIFS(Data!D:D,Data!$F:$F,$C$7&$C$8,Data!$B:$B,$A68) -> 102.98 | F68: =SUMIFS(Data!E:E,Data!$F:$F,$C$7&$C$8,Data!$B:$B,$A68) -> 78.51
A69: 97167 | B69: =INDEX(data,MATCH(A69,row,),MATCH($B$12,col,)) -> Ot eval high complex 60 min | D69: =SUMIFS(Data!D:D,Data!$F:$F,$C$7&$C$8,Data!$B:$B,$A69) -> 102.98 | F69: =SUMIFS(Data!E:E,Data!$F:$F,$C$7&$C$8,Data!$B:$B,$A69) -> 78.51
A70: 97168 | B70: =INDEX(data,MATCH(A70,row,),MATCH($B$12,col,)) -> Ot re-eval est plan care | D70: =SUMIFS(Data!D:D,Data!$F:$F,$C$7&$C$8,Data!$B:$B,$A70) -> 70.92 | F70: =SUMIFS(Data!E:E,Data!$F:$F,$C$7&$C$8,Data!$B:$B,$A70) -> 52.49
A71: 97530 | B71: =INDEX(data,MATCH(A71,row,),MATCH($B$12,col,)) -> Therapeutic activities | D71: =SUMIFS(Data!D:D,Data!$F:$F,$C$7&$C$8,Data!$B:$B,$A71) -> 38.15 | F71: =SUMIFS(Data!E:E,Data!$F:$F,$C$7&$C$8,Data!$B:$B,$A71) -> 26.78
A72: 97533 | B72: =INDEX(data,MATCH(A72,row,),MATCH($B$12,col,)) -> Sensory integration | D72: =SUMIFS(Data!D:D,Data!$F:$F,$C$7&$C$8,Data!$B:$B,$A72) -> 65.38 | F72: =SUMIFS(Data!E:E,Data!$F:$F,$C$7&$C$8,Data!$B:$B,$A72) -> 41.08
A73: 97535 | B73: =INDEX(data,MATCH(A73,row,),MATCH($B$12,col,)) -> Self care mngment training | D73: =SUMIFS(Data!D:D,Data!$F:$F,$C$7&$C$8,Data!$B:$B,$A73) -> 33.67 | F73: =SUMIFS(Data!E:E,Data!$F:$F,$C$7&$C$8,Data!$B:$B,$A73) -> 24.71
A74: 97537 | B74: =INDEX(data,MATCH(A74,row,),MATCH($B$12,col,)) -> Community/work reintegration | D74: =SUMIFS(Data!D:D,Data!$F:$F,$C$7&$C$8,Data!$B:$B,$A74) -> 32.64 | F74: =SUMIFS(Data!E:E,Data!$F:$F,$C$7&$C$8,Data!$B:$B,$A74) -> 24.71
A75: 97542 | B75: =INDEX(data,MATCH(A75,row,),MATCH($B$12,col,)) -> Wheelchair mngment training | D75: =SUMIFS(Data!D:D,Data!$F:$F,$C$7&$C$8,Data!$B:$B,$A75) -> 32.64 | F75: =SUMIFS(Data!E:E,Data!$F:$F,$C$7&$C$8,Data!$B:$B,$A75) -> 24.71
A76: 97597 | B76: =INDEX(data,MATCH(A76,row,),MATCH($B$12,col,)) -> Rmvl devital tis 20 cm/< | D76: =SUMIFS(Data!D:D,Data!$F:$F,$C$7&$C$8,Data!$B:$B,$A76) -> 103.11 | F76: =SUMIFS(Data!E:E,Data!$F:$F,$C$7&$C$8,Data!$B:$B,$A76) -> 65.55
A77: 97598 | B77: =INDEX(data,MATCH(A77,row,),MATCH($B$12,col,)) -> Rmvl devital tis addl 20cm/< | D77: =SUMIFS(Data!D:D,Data!$F:$F,$C$7&$C$8,Data!$B:$B,$A77) -> 45.56 | F77: =SUMIFS(Data!E:E,Data!$F:$F,$C$7&$C$8,Data!$B:$B,$A77) -> 32.12
A78: 97610 | B78: =INDEX(data,MATCH(A78,row,),MATCH($B$12,col,)) -> Low frequency non-thermal us | D78: =SUMIFS(Data!D:D,Data!$F:$F,$C$7&$C$8,Data!$B:$B,$A78) -> 458.95 | F78: =SUMIFS(Data!E:E,Data!$F:$F,$C$7&$C$8,Data!$B:$B,$A78) -> 236.49
A79: 97750 | B79: =INDEX(data,MATCH(A79,row,),MATCH($B$12,col,)) -> Physical performance test | D79: =SUMIFS(Data!D:D,Data!$F:$F,$C$7&$C$8,Data!$B:$B,$A79) -> 34.7 | F79: =SUMIFS(Data!E:E,Data!$F:$F,$C$7&$C$8,Data!$B:$B,$A79) -> 25.23
A80: 97755 | B80: =INDEX(data,MATCH(A80,row,),MATCH($B$12,col,)) -> Assistive technology assess | D80: =SUMIFS(Data!D:D,Data!$F:$F,$C$7&$C$8,Data!$B:$B,$A80) -> 39.43 | F80: =SUMIFS(Data!E:E,Data!$F:$F,$C$7&$C$8,Data!$B:$B,$A80) -> 30.64
A81: 97760 | B81: =INDEX(data,MATCH(A81,row,),MATCH($B$12,col,)) -> Orthotic mgmt&traing 1st enc | D81: =SUMIFS(Data!D:D,Data!$F:$F,$C$7&$C$8,Data!$B:$B,$A81) -> 49.87 | F81: =SUMIFS(Data!E:E,Data!$F:$F,$C$7&$C$8,Data!$B:$B,$A81) -> 33.67
A82: 97761 | B82: =INDEX(data,MATCH(A82,row,),MATCH($B$12,col,)) -> Prosthetic traing 1st enc | D82: =SUMIFS(Data!D:D,Data!$F:$F,$C$7&$C$8,Data!$B:$B,$A82) -> 42.98 | F82: =SUMIFS(Data!E:E,Data!$F:$F,$C$7&$C$8,Data!$B:$B,$A82) -> 30.22
A83: 97763 | B83: =INDEX(data,MATCH(A83,row,),MATCH($B$12,col,)) -> Orthc/prostc mgmt sbsq enc | D83: =SUMIFS(Data!D:D,Data!$F:$F,$C$7&$C$8,Data!$B:$B,$A83) -> 54.69 | F83: =SUMIFS(Data!E:E,Data!$F:$F,$C$7&$C$8,Data!$B:$B,$A83) -> 35.74
A84: 98966 | B84: =INDEX(data,MATCH(A84,row,),MATCH($B$12,col,)) -> Hc pro phone call 5-10 min | D84: =SUMIFS(Data!D:D,Data!$F:$F,$C$7&$C$8,Data!$B:$B,$A84) -> 13.34 | F84: =SUMIFS(Data!E:E,Data!$F:$F,$C$7&$C$8,Data!$B:$B,$A84) -> 11.1
A85: 98967 | B85: =INDEX(data,MATCH(A85,row,),MATCH($B$12,col,)) -> Hc pro phone call 11-20 min | D85: =SUMIFS(Data!D:D,Data!$F:$F,$C$7&$C$8,Data!$B:$B,$A85) -> 24.26 | F85: =SUMIFS(Data!E:E,Data!$F:$F,$C$7&$C$8,Data!$B:$B,$A85) -> 20.99
A86: 98968 | B86: =INDEX(data,MATCH(A86,row,),MATCH($B$12,col,)) -> Hc pro phone call 21-30 min | D86: =SUMIFS(Data!D:D,Data!$F:$F,$C$7&$C$8,Data!$B:$B,$A86) -> 33.91 | F86: =SUMIFS(Data!E:E,Data!$F:$F,$C$7&$C$8,Data!$B:$B,$A86) -> 30.12
A87: 98970 | B87: =INDEX(data,MATCH(A87,row,),MATCH($B$12,col,)) -> Qnhp ol dig assmt&mgmt 5-10 | D87: =SUMIFS(Data!D:D,Data!$F:$F,$C$7&$C$8,Data!$B:$B,$A87) -> 11.61 | F87: =SUMIFS(Data!E:E,Data!$F:$F,$C$7&$C$8,Data!$B:$B,$A87) -> 10.24
A88: 98971 | B88: =INDEX(data,MATCH(A88,row,),MATCH($B$12,col,)) -> Qnhp ol dig assmt&mgmt 11-20 | D88: =SUMIFS(Data!D:D,Data!$F:$F,$C$7&$C$8,Data!$B:$B,$A88) -> 20.57 | F88: =SUMIFS(Data!E:E,Data!$F:$F,$C$7&$C$8,Data!$B:$B,$A88) -> 17.99
A89: 98972 | B89: =INDEX(data,MATCH(A89,row,),MATCH($B$12,col,)) -> Qnhp ol dig assmt&mgmt 21+ | D89: =SUMIFS(Data!D:D,Data!$F:$F,$C$7&$C$8,Data!$B:$B,$A89) -> 31.5 | F89: =SUMIFS(Data!E:E,Data!$F:$F,$C$7&$C$8,Data!$B:$B,$A89) -> 27.88
A90: G0281 | B90: =INDEX(data,MATCH(A90,row,),MATCH($B$12,col,)) -> Elec stim unattend for press | D90: =SUMIFS(Data!D:D,Data!$F:$F,$C$7&$C$8,Data!$B:$B,$A90) -> 12.3 | F90: =SUMIFS(Data!E:E,Data!$F:$F,$C$7&$C$8,Data!$B:$B,$A90) -> 9.37
A91: G0283 | B91: =INDEX(data,MATCH(A91,row,),MATCH($B$12,col,)) -> Elec stim other than wound | D91: =SUMIFS(Data!D:D,Data!$F:$F,$C$7&$C$8,Data!$B:$B,$A91) -> 12.3 | F91: =SUMIFS(Data!E:E,Data!$F:$F,$C$7&$C$8,Data!$B:$B,$A91) -> 9.37
A92: G0329 | B92: =INDEX(data,MATCH(A92,row,),MATCH($B$12,col,)) -> Electromagntic tx for ulcers | D92: =SUMIFS(Data!D:D,Data!$F:$F,$C$7&$C$8,Data!$B:$B,$A92) -> 11.27 | F92: =SUMIFS(Data!E:E,Data!$F:$F,$C$7&$C$8,Data!$B:$B,$A92) -> 6.79
A93: G2010 | B93: =INDEX(data,MATCH(A93,row,),MATCH($B$12,col,)) -> Remot image submit by pt | D93: =SUMIFS(Data!D:D,Data!$F:$F,$C$7&$C$8,Data!$B:$B,$A93) -> 12.3 | F93: =SUMIFS(Data!E:E,Data!$F:$F,$C$7&$C$8,Data!$B:$B,$A93) -> 9.37
A94: G2012 | B94: =INDEX(data,MATCH(A94,row,),MATCH($B$12,col,)) -> Brief check in by md/qhp | D94: =SUMIFS(Data!D:D,Data!$F:$F,$C$7&$C$8,Data!$B:$B,$A94) -> 14.27 | F94: =SUMIFS(Data!E:E,Data!$F:$F,$C$7&$C$8,Data!$B:$B,$A94) -> 11.68

Sheet Data (hidden)
A1: Source file: ADVION file (in the 2023 folder as ZZZ) | L1: STATE | M1: ZIP CODE | N1: CARRIER | O1: LOCALITY | P1: RURAL IND | Q1: LAB CB LOCALITY | R1: RURAL IND2 | S1: PLUS 4 FLAG | T1: PART B DRUG INDICATOR | U1: YEAR/QTR
K2: =O2&N2 -> 0102102 | L2: AK | M2: 99501 | N2: 02102 | O2: 01 | Q2: Z9 | S2: 0 | T2: A | U2: 20211
K3: =O3&N3 -> 0102102 | L3: AK | M3: 99502 | N3: 02102 | O3: 01 | Q3: Z9 | S3: 0 | T3: A | U3: 20211
K4: 0102102 | L4: AK | M4: 99503 | N4: 02102 | O4: 01 | Q4: Z9 | S4: 0 | T4: A | U4: 20211
A5: EffDate | B5: HCPCS | C5: DESCRIPTION | D5: Rate100 | E5: MPPRRate | F5: Combo | H5: HCPCS | I5: DESCRIPTION | K5: 0102102 | L5: AK | M5: 99504 | N5: 02102 | O5: 01 | Q5: Z9 | S5: 0 | T5: A | U5: 20211
A6: 2023-01-01 | B6: 29126 | C6: Apply forearm splint | D6: 71.7 | E6: 48.64 | F6: AL00 | H6: A0021 | I6: Outside state ambulance serv | K6: 0102102 | L6: AK | M6: 99505 | N6: 02102 | O6: 01 | Q6: Z9 | S6: 0 | T6: A | U6: 20211
A7: 2023-01-01 | B7: 29130 | C7: Application of finger splint | D7: 39.12 | E7: 29.3 | F7: AL00 | H7: A0080 | I7: Noninterest escort in non er | K7: 0102102 | L7: AK | M7: 99506 | N7: 02102 | O7: 01 | Q7: Z9 | S7: 0 | T7: A | U7: 20211
A8: 2023-01-01 | B8: 29131 | C8: Application of finger splint | D8: 49.74 | E8: 35.45 | F8: AL00 | H8: A0090 | I8: Interest escort in non er | K8: 0102102 | L8: AK | M8: 99507 | N8: 02102 | O8: 01 | Q8: Z9 | S8: 0 | T8: A | U8: 20211
A9: 2023-01-01 | B9: 29505 | C9: Application long leg splint | D9: 81.47 | E9: 53.95 | F9: AL00 | H9: A0100 | I9: Nonemergency transport taxi | K9: 0102102 | L9: AK | M9: 99508 | N9: 02102 | O9: 01 | Q9: Z9 | S9: 0 | T9: A | U9: 20211
A10: 2023-01-01 | B10: 29515 | C10: Application lower leg splint | D10: 66.5 | E10: 47.01 | F10: AL00 | H10: A0110 | I10: Nonemergency transport bus | K10: 0102102 | L10: AK | M10: 99509 | N10: 02102 | O10: 01 | Q10: Z9 | S10: 0 | T10: A | U10: 20211
A11: 2023-01-01 | B11: 29580 | C11: Application of paste boot | D11: 58.2 | E11: 39.31 | F11: AL00 | H11: A0120 | I11: Noner transport mini-bus | K11: 0102102 | L11: AK | M11: 99510 | N11: 02102 | O11: 01 | Q11: Z9 | S11: 0 | T11: A | U11: 20211
A12: 2023-01-01 | B12: 90901 | C12: Biofeedback train any meth | D12: 37.95 | E12: 26.05 | F12: AL00 | H12: A0130 | I12: Noner transport wheelch van | K12: 0102102 | L12: AK | M12: 99511 | N12: 02102 | O12: 01 | Q12: Z9 | S12: 0 | T12: A | U12: 20211
A13: 2023-01-01 | B13: 92507 | C13: Speech/hearing therapy | D13: 73.04 | E13: 59.05 | F13: AL00 | H13: A0140 | I13: Nonemergency transport air | K13: 0102102 | L13: AK | M13: 99512 | N13: 02102 | O13: 01 | Q13: Z9 | S13: 0 | T13: A | U13: 20211
A14: 2023-01-01 | B14: 92508 | C14: Speech/hearing therapy | D14: 22.44 | E14: 16.94 | F14: AL00 | H14: A0160 | I14: Noner transport case worker | K14: 0102102 | L14: AK | M14: 99513 | N14: 02102 | O14: 01 | Q14: Z9 | S14: 0 | T14: A | U14: 20211
A15: 2023-01-01 | B15: 92511 | C15: Nasopharyngoscopy | D15: 107.67 | E15: 64.68 | F15: AL00 | H15: A0170 | I15: Transport parking fees/tolls | K15: 0102102 | L15: AK | M15: 99514 | N15: 02102 | O15: 01 | Q15: Z9 | S15: 0 | T15: A | U15: 20211
A16: 2023-01-01 | B16: 92521 | C16: Evaluation of speech fluency | D16: 126.82 | E16: 102.12 | F16: AL00 | H16: A0180 | I16: Noner transport lodgng recip | K16: 0102102 | L16: AK | M16: 99515 | N16: 02102 | O16: 01 | Q16: Z9 | S16: 0 | T16: A | U16: 20211
A17: 2023-01-01 | B17: 92522 | C17: Evaluate speech production | D17: 106.11 | E17: 86.47 | F17: AL00 | H17: A0190 | I17: Noner transport meals recip | K17: 0102102 | L17: AK | M17: 99516 | N17: 02102 | O17: 01 | Q17: Z9 | S17: 0 | T17: A | U17: 20211
A18: 2023-01-01 | B18: 92523 | C18: Speech sound lang comprehen | D18: 217.46 | E18: 175.06 | F18: AL00 | H18: A0200 | I18: Noner transport lodgng escrt | K18: 0102102 | L18: AK | M18: 99517 | N18: 02102 | O18: 01 | Q18: Z9 | S18: 0 | T18: A | U18: 20211
A19: 2023-01-01 | B19: 92524 | C19: Behavral qualit analys voice | D19: 104.92 | E19: 85.88 | F19: AL00 | H19: A0210 | I19: Noner transport meals escort | K19: 0102102 | L19: AK | M19: 99518 | N19: 02102 | O19: 01 | Q19: Z9 | S19: 0 | T19: A | U19: 20211
A20: 2023-01-01 | B20: 92526 | C20: Oral function therapy | D20: 80.64 | E20: 63.53 | F20: AL00 | H20: A0225 | I20: Neonatal emergency transport | K20: 0102102 | L20: AK | M20: 99519 | N20: 02102 | O20: 01 | Q20: Z9 | S20: 0 | T20: A | U20: 20211
A21: 2023-01-01 | B21: 92597 | C21: Oral speech device eval | D21: 68.7 | E21: 56.21 | F21: AL00 | H21: A0380 | I21: Basic life support mileage | K21: 0102102 | L21: AK | M21: 99520 | N21: 02102 | O21: 01 | Q21: Z9 | S21: 0 | T21: A | U21: 20211
A22: 2023-01-01 | B22: 92605 | C22: Ex for nonspeech device rx | D22: 87.38 | E22: 74.74 | F22: AL00 | H22: A0382 | I22: Basic support routine suppls | K22: 0102102 | L22: AK | M22: 99521 | N22: 02102 | O22: 01 | Q22: Z9 | S22: 0 | T22: A | U22: 20211
A23: 2023-01-01 | B23: 92606 | C23: Non-speech device service | D23: 75.65 | E23: 62.56 | F23: AL00 | H23: A0384 | I23: Bls defibrillation supplies | K23: 0102102 | L23: AK | M23: 99522 | N23: 02102 | O23: 01 | Q23: Z9 | S23: 0 | T23: A | U23: 20211
A24: 2023-01-01 | B24: 92607 | C24: Ex for speech device rx 1hr | D24: 117.26 | E24: 90.48 | F24: AL00 | H24: A0390 | I24: Advanced life support mileag | K24: 0102102 | L24: AK | M24: 99523 | N24: 02102 | O24: 01 | Q24: Z9 | S24: 0 | T24: A | U24: 20211
A25: 2023-01-01 | B25: 92608 | C25: Ex for speech device rx addl | D25: 45.95 | E25: 35.09 | F25: AL00 | H25: A0392 | I25: Als defibrillation supplies | K25: 0102102 | L25: AK | M25: 99524 | N25: 02102 | O25: 01 | Q25: Z9 | S25: 0 | T25: A | U25: 20211
A26: 2023-01-01 | B26: 92609 | C26: Use of speech device service | D26: 97.66 | E26: 74.75 | F26: AL00 | H26: A0394 | I26: Als iv drug therapy supplies | K26: 0102102 | L26: AK | M26: 99529 | N26: 02102 | O26: 01 | Q26: Z9 | S26: 0 | T26: A | U26: 20211
A27: 2023-01-01 | B27: 92610 | C27: Evaluate swallowing function | D27: 80.47 | E27: 62.77 | F27: AL00 | H27: A0396 | I27: Als esophageal intub suppls | K27: 0102102 | L27: AK | M27: 99530 | N27: 02102 | O27: 01 | Q27: Z9 | S27: 0 | T27: A | U27: 20211
A28: 2023-01-01 | B28: 95851 | C28: Range of motion measurements | D28: 19.36 | E28: 12.52 | F28: AL00 | H28: A0398 | I28: Als routine disposble suppls | K28: 0102102 | L28: AK | M28: 99540 | N28: 02102 | O28: 01 | Q28: Z9 | S28: 0 | T28: A | U28: 20211
A29: 2023-01-01 | B29: 96105 | C29: Assessment of aphasia | D29: 93.08 | E29: 77.46 | F29: AL00 | H29: A0420 | I29: Ambulance waiting 1/2 hr | K29: 0102102 | L29: AK | M29: 99545 | N29: 02102 | O29: 01 | P29: B | Q29: Z9 | R29: B | S29: 0 | T29: A | U29: 20211
A30: 2023-01-01 | B30: 96110 | C30: Developmental screen w/score | D30: 9.48 | E30: 4.87 | F30: AL00 | H30: A0422 | I30: Ambulance 02 life sustaining | K30: 0102102 | L30: AK | M30: 99546 | N30: 02102 | O30: 01 | P30: B | Q30: Z9 | R30: B | S30: 0 | T30: A | U30: 20211
A31: 2023-01-01 | B31: 96112 | C31: Devel tst phys/qhp 1st hr | D31: 121.24 | E31: 105.77 | F31: AL00 | H31: A0424 | I31: Extra ambulance attendant | K31: 0102102 | L31: AK | M31: 99547 | N31: 02102 | O31: 01 | P31: B | Q31: Z9 | R31: B | S31: 0 | T31: A | U31: 20211
A32: 2023-01-01 | B32: 96113 | C32: Devel tst phys/qhp ea addl | D32: 57.19 | E32: 49.01 | F32: AL00 | H32: A0425 | I32: Ground mileage | K32: 0102102 | L32: AK | M32: 99548 | N32: 02102 | O32: 01 | P32: B | Q32: Z9 | R32: B | S32: 0 | T32: A | U32: 20211
A33: 2023-01-01 | B33: 96116 | C33: Nubhvl xm phys/qhp 1st hr | D33: 89.16 | E33: 77.11 | F33: AL00 | H33: A0426 | I33: Als 1 | K33: 0102102 | L33: AK | M33: 99549 | N33: 02102 | O33: 01 | P33: B | Q33: Z9 | R33: B | S33: 0 | T33: A | U33: 20211
A34: 2023-01-01 | B34: 96125 | C34: Cognitive test by hc pro | D34: 97.51 | E34: 78.32 | F34: AL00 | H34: A0427 | I34: Als1-emergency | K34: 0102102 | L34: AK | M34: 99550 | N34: 02102 | O34: 01 | P34: B | Q34: Z9 | R34: B | S34: 0 | T34: A | U34: 20211
A35: 2023-01-01 | B35: 97012 | C35: Mechanical traction therapy | D35: 13.78 | E35: 11.25 | F35: AL00 | H35: A0428 | I35: Bls | K35: 0102102 | L35: AK | M35: 99551 | N35: 02102 | O35: 01 | P35: B | Q35: Z9 | R35: B | S35: 0 | T35: A | U35: 20211
A36: 2023-01-01 | B36: 97016 | C36: Vasopneumatic device therapy | D36: 11.11 | E36: 8.73 | F36: AL00 | H36: A0429 | I36: Bls-emergency | K36: 0102102 | L36: AK | M36: 99552 | N36: 02102 | O36: 01 | P36: B | Q36: Z9 | R36: B | S36: 0 | T36: A | U36: 20211
A37: 2023-01-01 | B37: 97018 | C37: Paraffin bath therapy | D37: 5.26 | E37: 3.77 | F37: AL00 | H37: A0430 | I37: Fixed wing air transport | K37: 0102102 | L37: AK | M37: 99553 | N37: 02102 | O37: 01 | P37: B | Q37: Z9 | R37: B | S37: 0 | T37: A | U37: 20211
A38: 2023-01-01 | B38: 97022 | C38: Whirlpool therapy | D38: 15.83 | E38: 10.92 | F38: AL00 | H38: A0431 | I38: Rotary wing air transport | K38: 0102102 | L38: AK | M38: 99554 | N38: 02102 | O38: 01 | P38: B | Q38: Z9 | R38: B | S38: 0 | T38: A | U38: 20211
A39: 2023-01-01 | B39: 97024 | C39: Diathermy eg microwave | D39: 6.75 | E39: 4.52 | F39: AL00 | H39: A0432 | I39: Pi volunteer ambulance co | K39: 0102102 | L39: AK | M39: 99555 | N39: 02102 | O39: 01 | P39: B | Q39: Z9 | R39: B | S39: 0 | T39: A | U39: 20211
A40: 2023-01-01 | B40: 97026 | C40: Infrared therapy | D40: 6.15 | E40: 4.22 | F40: AL00 | H40: A0433 | I40: Als 2 | K40: 0102102 | L40: AK | M40: 99556 | N40: 02102 | O40: 01 | P40: B | Q40: Z9 | R40: B | S40: 0 | T40: A | U40: 20211
A41: 2023-01-01 | B41: 97028 | C41: Ultraviolet therapy | D41: 7.72 | E41: 5.34 | F41: AL00 | H41: A0434 | I41: Specialty care transport | K41: 0102102 | L41: AK | M41: 99557 | N41: 02102 | O41: 01 | P41: B | Q41: Z9 | R41: B | S41: 0 | T41: A | U41: 20211
A42: 2023-01-01 | B42: 97032 | C42: Electrical stimulation | D42: 13.78 | E42: 11.25 | F42: AL00 | H42: A0435 | I42: Fixed wing air mileage | K42: 0102102 | L42: AK | M42: 99558 | N42: 02102 | O42: 01 | P42: B | Q42: Z9 | R42: B | S42: 0 | T42: A | U42: 20211
A43: 2023-01-01 | B43: 97033 | C43: Electric current therapy | D43: 18.59 | E43: 13.82 | F43: AL00 | H43: A0436 | I43: Rotary wing air mileage | K43: 0102102 | L43: AK | M43: 99559 | N43: 02102 | O43: 01 | P43: B | Q43: Z9 | R43: B | S43: 0 | T43: A | U43: 20211
A44: 2023-01-01 | B44: 97034 | C44: Contrast bath therapy | D44: 13.62 | E44: 10.49 | F44: AL00 | H44: A0888 | I44: Noncovered ambulance mileage | K44: 0102102 | L44: AK | M44: 99561 | N44: 02102 | O44: 01 | P44: B | Q44: Z9 | R44: B | S44: 0 | T44: A | U44: 20211
A45: 2023-01-01 | B45: 97035 | C45: Ultrasound therapy | D45: 13.62 | E45: 10.49 | F45: AL00 | H45: A0998 | I45: Ambulance response/treatment | K45: 0102102 | L45: AK | M45: 99563 | N45: 02102 | O45: 01 | P45: B | Q45: Z9 | R45: B | S45: 0 | T45: A | U45: 20211
A46: 2023-01-01 | B46: 97036 | C46: Hydrotherapy | D46: 32.06 | E46: 20.9 | F46: AL00 | H46: A0999 | I46: Unlisted ambulance service | K46: 0102102 | L46: AK | M46: 99564 | N46: 02102 | O46: 01 | P46: B | Q46: Z9 | R46: B | S46: 0 | T46: A | U46: 20211
A47: 2023-01-01 | B47: 97110 | C47: Therapeutic exercises | D47: 28 | E47: 21.75 | F47: AL00 | H47: A4206 | I47: 1 cc sterile syringe&needle | K47: 0102102 | L47: AK | M47: 99565 | N47: 02102 | O47: 01 | P47: B | Q47: Z9 | R47: B | S47: 0 | T47: A | U47: 20211
A48: 2023-01-01 | B48: 97112 | C48: Neuromuscular reeducation | D48: 32.07 | E48: 24.64 | F48: AL00 | H48: A4207 | I48: 2 cc sterile syringe&needle | K48: 0102102 | L48: AK | M48: 99566 | N48: 02102 | O48: 01 | P48: B | Q48: Z9 | R48: B | S48: 0 | T48: A | U48: 20211
A49: 2023-01-01 | B49: 97113 | C49: Aquatic therapy/exercises | D49: 34.67 | E49: 25.59 | F49: AL00 | H49: A4208 | I49: 3 cc sterile syringe&needle | K49: 0102102 | L49: AK | M49: 99567 | N49: 02102 | O49: 01 | Q49: Z9 | S49: 0 | T49: A | U49: 20211
A50: 2023-01-01 | B50: 97116 | C50: Gait training therapy | D50: 28 | E50: 21.75 | F50: AL00 | H50: A4209 | I50: 5+ cc sterile syringe&needle | K50: 0102102 | L50: AK | M50: 99568 | N50: 02102 | O50: 01 | P50: B | Q50: Z9 | R50: B | S50: 0 | T50: A | U50: 20211
A51: 2023-01-01 | B51: 97124 | C51: Massage therapy | D51: 28.18 | E51: 20.15 | F51: AL00 | H51: A4210 | I51: Nonneedle injection device | K51: 0102102 | L51: AK | M51: 99569 | N51: 02102 | O51: 01 | P51: B | Q51: Z9 | R51: B | S51: 0 | T51: A | U51: 20211
A52: 2023-01-01 | B52: 97129 | C52: Ther ivntj 1st 15 min | D52: 21.96 | E52: 19.58 | F52: AL00 | H52: A4211 | I52: Supp for self-adm injections | K52: 0102102 | L52: AK | M52: 99571 | N52: 02102 | O52: 01 | P52: B | Q52: Z9 | R52: B | S52: 0 | T52: A | U52: 20211
A53: 2023-01-01 | B53: 97130 | C53: Ther ivntj ea addl 15 min | D53: 20.98 | E53: 18.75 | F53: AL00 | H53: A4212 | I53: Non coring needle or stylet | K53: 0102102 | L53: AK | M53: 99572 | N53: 02102 | O53: 01 | P53: B | Q53: Z9 | R53: B | S53: 0 | T53: A | U53: 20211
A54: 2023-01-01 | B54: 97140 | C54: Manual therapy 1/> regions | D54: 25.83 | E54: 20.33 | F54: AL00 | H54: A4213 | I54: 20+ cc syringe only | K54: 0102102 | L54: AK | M54: 99573 | N54: 02102 | O54: 01 | P54: B | Q54: Z9 | R54: B | S54: 0 | T54: A | U54: 20211
A55: 2023-01-01 | B55: 97150 | C55: Group therapeutic procedures | D55: 16.92 | E55: 13.5 | F55: AL00 | H55: A4215 | I55: Sterile needle | K55: 0102102 | L55: AK | M55: 99574 | N55: 02102 | O55: 01 | P55: B | Q55: Z9 | R55: B | S55: 0 | T55: A | U55: 20211
A56: 2023-01-01 | B56: 97161 | C56: Pt eval low complex 20 min | D56: 95.45 | E56: 74.32 | F56: AL00 | H56: A4216 | I56: Sterile water/saline, 10 ml | K56: 0102102 | L56: AK | M56: 99575 | N56: 02102 | O56: 01 | P56: B | Q56: Z9 | R56: B | S56: 0 | T56: A | U56: 20211
A57: 2023-01-01 | B57: 97162 | C57: Pt eval mod complex 30 min | D57: 95.45 | E57: 74.32 | F57: AL00 | H57: A4217 | I57: Sterile water/saline, 500 ml | K57: 0102102 | L57: AK | M57: 99576 | N57: 02102 | O57: 01 | P57: B | Q57: Z9 | R57: B | S57: 0 | T57: A | U57: 20211
A58: 2023-01-01 | B58: 97163 | C58: Pt eval high complex 45 min | D58: 95.45 | E58: 74.32 | F58: AL00 | H58: A4218 | I58: Sterile saline or water | K58: 0102102 | L58: AK | M58: 99577 | N58: 02102 | O58: 01 | Q58: Z9 | S58: 0 | T58: A | U58: 20211
A59: 2023-01-01 | B59: 97164 | C59: Pt re-eval est plan care | D59: 65.68 | E59: 49.61 | F59: AL00 | H59: A4220 | I59: Infusion pump refill kit | K59: 0102102 | L59: AK | M59: 99578 | N59: 02102 | O59: 01 | P59: B | Q59: Z9 | R59: B | S59: 0 | T59: A | U59: 20211
A60: 2023-01-01 | B60: 97165 | C60: Ot eval low complex 30 min | D60: 95.45 | E60: 74.32 | F60: AL00 | H60: A4221 | I60: Supp non-insulin inf cath/wk | K60: 0102102 | L60: AK | M60: 99579 | N60: 02102 | O60: 01 | P60: B | Q60: Z9 | R60: B | S60: 0 | T60: A | U60: 20211
A61: 2023-01-01 | B61: 97166 | C61: Ot eval mod complex 45 min | D61: 95.45 | E61: 74.32 | F61: AL00 | H61: A4222 | I61: Infusion supplies with pump | K61: 0102102 | L61: AK | M61: 99580 | N61: 02102 | O61: 01 | P61: B | Q61: Z9 | R61: B | S61: 0 | T61: A | U61: 20211
A62: 2023-01-01 | B62: 97167 | C62: Ot eval high complex 60 min | D62: 95.45 | E62: 74.32 | F62: AL00 | H62: A4223 | I62: Infusion supplies w/o pump | K62: 0102102 | L62: AK | M62: 99581 | N62: 02102 | O62: 01 | P62: B | Q62: Z9 | R62: B | S62: 0 | T62: A | U62: 20211
A63: 2023-01-01 | B63: 97168 | C63: Ot re-eval est plan care | D63: 65.38 | E63: 49.46 | F63: AL00 | H63: A4224 | I63: Supply insulin inf cath/wk | K63: 0102102 | L63: AK | M63: 99583 | N63: 02102 | O63: 01 | P63: B | Q63: Z9 | R63: B | S63: 0 | T63: A | U63: 20211
A64: 2023-01-01 | B64: 97530 | C64: Therapeutic activities | D64: 34.8 | E64: 24.98 | F64: AL00 | H64: A4225 | I64: Sup/ext insulin inf pump syr | K64: 0102102 | L64: AK | M64: 99584 | N64: 02102 | O64: 01 | P64: B | Q64: Z9 | R64: B | S64: 0 | T64: A | U64: 20211
A65: 2023-01-01 | B65: 97533 | C65: Sensory integration | D65: 58.47 | E65: 37.5 | F65: AL00 | H65: A4226 | I65: Weekly supply maint cgs pump | K65: 0102102 | L65: AK | M65: 99585 | N65: 02102 | O65: 01 | P65: B | Q65: Z9 | R65: B | S65: 0 | T65: A | U65: 20211
A66: 2023-01-01 | B66: 97535 | C66: Self care mngment training | D66: 30.97 | E66: 23.24 | F66: AL00 | H66: A4230 | I66: Infus insulin pump non needl | K66: 0102102 | L66: AK | M66: 99586 | N66: 02102 | O66: 01 | P66: B | Q66: Z9 | R66: B | S66: 0 | T66: A | U66: 20211
A67: 2023-01-01 | B67: 97537 | C67: Community/work reintegration | D67: 30.21 | E67: 23.36 | F67: AL00 | H67: A4231 | I67: Infusion insulin pump needle | K67: =O67&N67 -> 0102102 | L67: AK | M67: 99587 | N67: 02102 | O67: 01 | Q67: Z9 | S67: 0 | T67: A | U67: 20211
A68: 2023-01-01 | B68: 97542 | C68: Wheelchair mngment training | D68: 30.21 | E68: 23.36 | F68: AL00 | H68: A4232 | I68: Syringe w/needle insulin 3cc | K68: 0102102 | L68: AK | M68: 99588 | N68: 02102 | O68: 01 | P68: B | Q68: Z9 | R68: B | S68: 0 | T68: A | U68: 20211
A69: 2023-01-01 | B69: 97597 | C69: Rmvl devital tis 20 cm/< | D69: 92.48 | E69: 60.04 | F69: AL00 | H69: A4233 | I69: Alkalin batt for glucose mon | K69: 0102102 | L69: AK | M69: 99589 | N69: 02102 | O69: 01 | P69: B | Q69: Z9 | R69: B | S69: 0 | T69: A | U69: 20211
A70: 2023-01-01 | B70: 97598 | C70: Rmvl devital tis addl 20cm/< | D70: 41.67 | E70: 30.07 | F70: AL00 | H70: A4234 | I70: J-cell batt for glucose mon | K70: 0102102 | L70: AK | M70: 99590 | N70: 02102 | O70: 01 | P70: B | Q70: Z9 | R70: B | S70: 0 | T70: A | U70: 20211
A71: 2023-01-01 | B71: 97610 | C71: Low frequency non-thermal us | D71: 397.92 | E71: 205.86 | F71: AL00 | H71: A4235 | I71: Lithium batt for glucose mon | K71: 0102102 | L71: AK | M71: 99591 | N71: 02102 | O71: 01 | P71: B | Q71: Z9 | R71: B | S71: 0 | T71: A | U71: 20211
A72: 2023-01-01 | B72: 97750 | C72: Physical performance test | D72: 31.87 | E72: 23.68 | F72: AL00 | H72: A4236 | I72: Silvr oxide batt glucose mon | K72: 0102102 | L72: AK | M72: 99599 | N72: 02102 | O72: 01 | Q72: Z9 | S72: 0 | T72: A | U72: 20211
A73: 2023-01-01 | B73: 97755 | C73: Assistive technology assess | D73: 36.69 | E73: 29.1 | F73: AL00 | H73: A4244 | I73: Alcohol or peroxide per pint | K73: 0102102 | L73: AK | M73: 99602 | N73: 02102 | O73: 01 | P73: B | Q73: Z9 | R73: B | S73: 0 | T73: A | U73: 20211
A74: 2023-01-01 | B74: 97760 | C74: Orthotic mgmt&traing 1st enc | D74: 45.16 | E74: 31.18 | F74: AL00 | H74: A4245 | I74: Alcohol wipes per box | K74: 0102102 | L74: AK | M74: 99603 | N74: 02102 | O74: 01 | P74: B | Q74: Z9 | R74: B | S74: 0 | T74: A | U74: 20211
A75: 2023-01-01 | B75: 97761 | C75: Prosthetic traing 1st enc | D75: 39.21 | E75: 28.21 | F75: AL00 | H75: A4246 | I75: Betadine/phisohex solution | K75: 0102102 | L75: AK | M75: 99604 | N75: 02102 | O75: 01 | P75: B | Q75: Z9 | R75: B | S75: 0 | T75: A | U75: 20211
A76: 2023-01-01 | B76: 97763 | C76: Orthc/prostc mgmt sbsq enc | D76: 49.25 | E76: 32.88 | F76: AL00 | H76: A4247 | I76: Betadine/iodine swabs/wipes | K76: 0102102 | L76: AK | M76: 99605 | N76: 02102 | O76: 01 | P76: B | Q76: Z9 | R76: B | S76: 0 | T76: A | U76: 20211
A77: 2023-01-01 | B77: 98966 | C77: Hc pro phone call 5-10 min | D77: 12.59 | E77: 10.66 | F77: AL00 | H77: A4248 | I77: Chlorhexidine antisept | K77: 0102102 | L77: AK | M77: 99606 | N77: 02102 | O77: 01 | P77: B | Q77: Z9 | R77: B | S77: 0 | T77: A | U77: 20211
A78: 2023-01-01 | B78: 98967 | C78: Hc pro phone call 11-20 min | D78: 23.1 | E78: 20.28 | F78: AL00 | H78: A4250 | I78: Urine reagent strips/tablets | K78: 0102102 | L78: AK | M78: 99607 | N78: 02102 | O78: 01 | P78: B | Q78: Z9 | R78: B | S78: 0 | T78: A | U78: 20211
A79: 2023-01-01 | B79: 98968 | C79: Hc pro phone call 21-30 min | D79: 32.47 | E79: 29.2 | F79: AL00 | H79: A4252 | I79: Blood ketone test or strip | K79: 0102102 | L79: AK | M79: 99608 | N79: 02102 | O79: 01 | P79: B | Q79: Z9 | R79: B | S79: 0 | T79: A | U79: 20211
A80: 2023-01-01 | B80: 98970 | C80: Qnhp ol dig assmt&mgmt 5-10 | D80: 11.11 | E80: 9.92 | F80: AL00 | H80: A4253 | I80: Blood glucose/reagent strips | K80: 0102102 | L80: AK | M80: 99609 | N80: 02102 | O80: 01 | P80: B | Q80: Z9 | R80: B | S80: 0 | T80: A | U80: 20211
A81: 2023-01-01 | B81: 98971 | C81: Qnhp ol dig assmt&mgmt 11-20 | D81: 19.63 | E81: 17.4 | F81: AL00 | H81: A4255 | I81: Glucose monitor platforms | K81: 0102102 | L81: AK | M81: 99610 | N81: 02102 | O81: 01 | P81: B | Q81: Z9 | R81: B | S81: 0 | T81: A | U81: 20211
A82: 2023-01-01 | B82: 98972 | C82: Qnhp ol dig assmt&mgmt 21+ | D82: 30.14 | E82: 27.01 | F82: AL00 | H82: A4256 | I82: Calibrator solution/chips | K82: 0102102 | L82: AK | M82: 99611 | N82: 02102 | O82: 01 | P82: B | Q82: Z9 | R82: B | S82: 0 | T82: A | U82: 20211
A83: 2023-01-01 | B83: G0281 | C83: Elec stim unattend for press | D83: 11.41 | E83: 8.88 | F83: AL00 | H83: A4257 | I83: Replace lensshield cartridge | K83: 0102102 | L83: AK | M83: 99612 | N83: 02102 | O83: 01 | P83: B | Q83: Z9 | R83: B | S83: 0 | T83: A | U83: 20211
A84: 2023-01-01 | B84: G0283 | C84: Elec stim other than wound | D84: 11.41 | E84: 8.88 | F84: AL00 | H84: A4258 | I84: Lancet device each | K84: 0102102 | L84: AK | M84: 99613 | N84: 02102 | O84: 01 | P84: B | Q84: Z9 | R84: B | S84: 0 | T84: A | U84: 20211
A85: 2023-01-01 | B85: G0329 | C85: Electromagntic tx for ulcers | D85: 10.02 | E85: 6.15 | F85: AL00 | H85: A4259 | I85: Lancets per box | K85: 0102102 | L85: AK | M85: 99614 | N85: 02102 | O85: 01 | P85: B | Q85: Z9 | R85: B | S85: 0 | T85: A | U85: 20211
A86: 2023-01-01 | B86: G2010 | C86: Remot image submit by pt | D86: 11.41 | E86: 8.88 | F86: AL00 | H86: A4261 | I86: Cervical cap contraceptive | K86: 0102102 | L86: AK | M86: 99615 | N86: 02102 | O86: 01 | P86: B | Q86: Z9 | R86: B | S86: 0 | T86: A | U86: 20211
A87: 2023-01-01 | B87: G2012 | C87: Brief check in by md/qhp | D87: 13.44 | E87: 11.21 | F87: AL00 | H87: A4262 | I87: Temporary tear duct plug | K87: 0102102 | L87: AK | M87: 99619 | N87: 02102 | O87: 01 | P87: B | Q87: Z9 | R87: B | S87: 0 | T87: A | U87: 20211
A88: 2023-01-01 | B88: 29126 | C88: Apply forearm splint | D88: 94.39 | E88: 65.5 | F88: AK01 | H88: A4263 | I88: Permanent tear duct plug | K88: 0102102 | L88: AK | M88: 99620 | N88: 02102 | O88: 01 | P88: B | Q88: Z9 | R88: B | S88: 0 | T88: A | U88: 20211
A89: 2023-01-01 | B89: 29130 | C89: Application of finger splint | D89: 52.06 | E89: 39.76 | F89: AK01 | H89: A4264 | I89: Intratubal occlusion device | K89: 0102102 | L89: AK | M89: 99621 | N89: 02102 | O89: 01 | P89: B | Q89: Z9 | R89: B | S89: 0 | T89: A | U89: 20211
A90: 2023-01-01 | B90: 29131 | C90: Application of finger splint | D90: 65.79 | E90: 47.89 | F90: AK01 | H90: A4265 | I90: Paraffin | K90: 0102102 | L90: AK | M90: 99622 | N90: 02102 | O90: 01 | P90: B | Q90: Z9 | R90: B | S90: 0 | T90: A | U90: 20211
A91: 2023-01-01 | B91: 29505 | C91: Application long leg splint | D91: 106.49 | E91: 72.01 | F91: AK01 | H91: A4266 | I91: Diaphragm | K91: 0102102 | L91: AK | M91: 99623 | N91: 02102 | O91: 01 | P91: B | Q91: Z9 | R91: B | S91: 0 | T91: A | U91: 20211
A92: 2023-01-01 | B92: 29515 | C92: Application lower leg splint | D92: 88.19 | E92: 63.77 | F92: AK01 | H92: A4267 | I92: Male condom | K92: 0102102 | L92: AK | M92: 99624 | N92: 02102 | O92: 01 | P92: B | Q92: Z9 | R92: B | S92: 0 | T92: A | U92: 20211
A93: 2023-01-01 | B93: 29580 | C93: Application of paste boot | D93: 76.73 | E93: 53.06 | F93: AK01 | H93: A4268 | I93: Female condom | K93: 0102102 | L93: AK | M93: 99625 | N93: 02102 | O93: 01 | P93: B | Q93: Z9 | R93: B | S93: 0 | T93: A | U93: 20211
A94: 2023-01-01 | B94: 90901 | C94: Biofeedback train any meth | D94: 50.87 | E94: 35.96 | F94: AK01 | H94: A4269 | I94: Spermicide | K94: 0102102 | L94: AK | M94: 99626 | N94: 02102 | O94: 01 | P94: B | Q94: Z9 | R94: B | S94: 0 | T94: A | U94: 20211
A95: 2023-01-01 | B95: 92507 | C95: Speech/hearing therapy | D95: 101.94 | E95: 84.42 | F95: AK01 | H95: A4270 | I95: Disposable endoscope sheath | K95: 0102102 | L95: AK | M95: 99627 | N95: 02102 | O95: 01 | P95: B | Q95: Z9 | R95: B | S95: 0 | T95: A | U95: 20211
A96: 2023-01-01 | B96: 92508 | C96: Speech/hearing therapy | D96: 30.77 | E96: 23.87 | F96: AK01 | H96: A4280 | I96: Brst prsths adhsv attchmnt | K96: 0102102 | L96: AK | M96: 99628 | N96: 02102 | O96: 01 | P96: B | Q96: Z9 | R96: B | S96: 0 | T96: A | U96: 20211
A97: 2023-01-01 | B97: 92511 | C97: Nasopharyngoscopy | D97: 139.55 | E97: 85.69 | F97: AK01 | H97: A4281 | I97: Replacement breastpump tube | K97: 0102102 | L97: AK | M97: 99629 | N97: 02102 | O97: 01 | P97: B | Q97: Z9 | R97: B | S97: 0 | T97: A | U97: 20211
A98: 2023-01-01 | B98: 92521 | C98: Evaluation of speech fluency | D98: 176.97 | E98: 146.03 | F98: AK01 | H98: A4282 | I98: Replacement breastpump adpt | K98: 0102102 | L98: AK | M98: 99630 | N98: 02102 | O98: 01 | P98: B | Q98: Z9 | R98: B | S98: 0 | T98: A | U98: 20211
A99: 2023-01-01 | B99: 92522 | C99: Evaluate speech production | D99: 148.23 | E99: 123.63 | F99: AK01 | H99: A4283 | I99: Replacement breastpump cap | K99: 0102102 | L99: AK | M99: 99631 | N99: 02102 | O99: 01 | P99: B | Q99: Z9 | R99: B | S99: 0 | T99: A | U99: 20211
A100: 2023-01-01 | B100: 92523 | C100: Speech sound lang comprehen | D100: 303.47 | E100: 250.35 | F100: AK01 | H100: A4284 | I100: Replcmnt breast pump shield | K100: 0102102 | L100: AK | M100: 99632 | N100: 02102 | O100: 01 | P100: B | Q100: Z9 | R100: B | S100: 0 | T100: A | U100: 20211
A101: 2023-01-01 | B101: 92524 | C101: Behavral qualit analys voice | D101: 146.74 | E101: 122.88 | F101: AK01 | H101: A4285 | I101: Replcmnt breast pump bottle | K101: 0102102 | L101: AK | M101: 99633 | N101: 02102 | O101: 01 | P101: B | Q101: Z9 | R101: B | S101: 0 | T101: A | U101: 20211
A102: 2023-01-01 | B102: 92526 | C102: Oral function therapy | D102: 111.8 | E102: 90.36 | F102: AK01 | H102: A4286 | I102: Replcmnt breastpump lok ring | K102: 0102102 | L102: AK | M102: 99634 | N102: 02102 | O102: 01 | P102: B | Q102: Z9 | R102: B | S102: 0 | T102: A | U102: 20211
A103: 2023-01-01 | B103: 92597 | C103: Oral speech device eval | D103: 96.18 | E103: 80.52 | F103: AK01 | H103: A4290 | I103: Sacral nerve stim test lead | K103: 0102102 | L103: AK | M103: 99635 | N103: 02102 | O103: 01 | P103: B | Q103: Z9 | R103: B | S103: 0 | T103: A | U103: 20211
A104: 2023-01-01 | B104: 92605 | C104: Ex for nonspeech device rx | D104: 122.89 | E104: 107.04 | F104: AK01 | H104: A4300 | I104: Cath impl vasc access portal | K104: 0102102 | L104: AK | M104: 99636 | N104: 02102 | O104: 01 | P104: B | Q104: Z9 | R104: B | S104: 0 | T104: A | U104: 20211
A105: 2023-01-01 | B105: 92606 | C105: Non-speech device service | D105: 105.6 | E105: 89.2 | F105: AK01 | H105: A4301 | I105: Implantable access syst perc | K105: 0102102 | L105: AK | M105: 99637 | N105: 02102 | O105: 01 | P105: B | Q105: Z9 | R105: B | S105: 0 | T105: A | U105: 20211
A106: 2023-01-01 | B106: 92607 | C106: Ex for speech device rx 1hr | D106: 161.95 | E106: 128.4 | F106: AK01 | H106: A4305 | I106: Drug delivery system >=50 ml | K106: 0102102 | L106: AK | M106: 99638 | N106: 02102 | O106: 01 | P106: B | Q106: Z9 | R106: B | S106: 0 | T106: A | U106: 20211
A107: 2023-01-01 | B107: 92608 | C107: Ex for speech device rx addl | D107: 63.2 | E107: 49.6 | F107: AK01 | H107: A4306 | I107: Drug delivery system <=50 ml | K107: 0102102 | L107: AK | M107: 99639 | N107: 02102 | O107: 01 | P107: B | Q107: Z9 | R107: B | S107: 0 | T107: A | U107: 20211
A108: 2023-01-01 | B108: 92609 | C108: Use of speech device service | D108: 134.47 | E108: 105.77 | F108: AK01 | H108: A4310 | I108: Insert tray w/o bag/cath | K108: 0102102 | L108: AK | M108: 99640 | N108: 02102 | O108: 01 | P108: B | Q108: Z9 | R108: B | S108: 0 | T108: A | U108: 20211
A109: 2023-01-01 | B109: 92610 | C109: Evaluate swallowing function | D109: 111.26 | E109: 89.08 | F109: AK01 | H109: A4311 | I109: Catheter w/o bag 2-way latex | K109: 0102102 | L109: AK | M109: 99641 | N109: 02102 | O109: 01 | P109: B | Q109: Z9 | R109: B | S109: 0 | T109: A | U109: 20211
A110: 2023-01-01 | B110: 95851 | C110: Range of motion measurements | D110: 25.48 | E110: 16.91 | F110: AK01 | H110: A4312 | I110: Cath w/o bag 2-way silicone | K110: 0102102 | L110: AK | M110: 99643 | N110: 02102 | O110: 01 | P110: B | Q110: Z9 | R110: B | S110: 0 | T110: A | U110: 20211
A111: 2023-01-01 | B111: 96105 | C111: Assessment of aphasia | D111: 130.14 | E111: 110.57 | F111: AK01 | H111: A4313 | I111: Catheter w/bag 3-way | K111: 0102102 | L111: AK | M111: 99644 | N111: 02102 | O111: 01 | P111: B | Q111: Z9 | R111: B | S111: 0 | T111: A | U111: 20211
A112: 2023-01-01 | B112: 96110 | C112: Developmental screen w/score | D112: 11.76 | E112: 5.98 | F112: AK01 | H112: A4314 | I112: Cath w/drainage 2-way latex | K112: 0102102 | L112: AK | M112: 99645 | N112: 02102 | O112: 01 | P112: B | Q112: Z9 | R112: B | S112: 0 | T112: A | U112: 20211
A113: 2023-01-01 | B113: 96112 | C113: Devel tst phys/qhp 1st hr | D113: 171.75 | E113: 152.37 | F113: AK01 | H113: A4315 | I113: Cath w/drainage 2-way silcne | K113: 0102102 | L113: AK | M113: 99647 | N113: 02102 | O113: 01 | P113: B | Q113: Z9 | R113: B | S113: 0 | T113: A | U113: 20211
A114: 2023-01-01 | B114: 96113 | C114: Devel tst phys/qhp ea addl | D114: 80.69 | E114: 70.44 | F114: AK01 | H114: A4316 | I114: Cath w/drainage 3-way | K114: 0102102 | L114: AK | M114: 99648 | N114: 02102 | O114: 01 | P114: B | Q114: Z9 | R114: B | S114: 0 | T114: A | U114: 20211
A115: 2023-01-01 | B115: 96116 | C115: Nubhvl xm phys/qhp 1st hr | D115: 126.37 | E115: 111.28 | F115: AK01 | H115: A4320 | I115: Irrigation tray | K115: 0102102 | L115: AK | M115: 99649 | N115: 02102 | O115: 01 | P115: B | Q115: Z9 | R115: B | S115: 0 | T115: A | U115: 20211
A116: 2023-01-01 | B116: 96125 | C116: Cognitive test by hc pro | D116: 135.72 | E116: 111.68 | F116: AK01 | H116: A4321 | I116: Cath therapeutic irrig agent | K116: 0102102 | L116: AK | M116: 99650 | N116: 02102 | O116: 01 | P116: B | Q116: Z9 | R116: B | S116: 0 | T116: A | U116: 20211
A117: 2023-01-01 | B117: 97012 | C117: Mechanical traction therapy | D117: 19.25 | E117: 16.08 | F117: AK01 | H117: A4322 | I117: Irrigation syringe | K117: 0102102 | L117: AK | M117: 99651 | N117: 02102 | O117: 01 | P117: B | Q117: Z9 | R117: B | S117: 0 | T117: A | U117: 20211
A118: 2023-01-01 | B118: 97016 | C118: Vasopneumatic device therapy | D118: 15.32 | E118: 12.34 | F118: AK01 | H118: A4326 | I118: Male external catheter | K118: 0102102 | L118: AK | M118: 99652 | N118: 02102 | O118: 01 | P118: B | Q118: Z9 | R118: B | S118: 0 | T118: A | U118: 20211
A119: 2023-01-01 | B119: 97018 | C119: Paraffin bath therapy | D119: 6.98 | E119: 5.12 | F119: AK01 | H119: A4327 | I119: Fem urinary collect dev cup | K119: 0102102 | L119: AK | M119: 99653 | N119: 02102 | O119: 01 | P119: B | Q119: Z9 | R119: B | S119: 0 | T119: A | U119: 20211
A120: 2023-01-01 | B120: 97022 | C120: Whirlpool therapy | D120: 21.15 | E120: 15 | F120: AK01 | H120: A4328 | I120: Fem urinary collect pouch | K120: 0102102 | L120: AK | M120: 99654 | N120: 02102 | O120: 01 | P120: B | Q120: Z9 | R120: B | S120: 0 | T120: A | U120: 20211
A121: 2023-01-01 | B121: 97024 | C121: Diathermy eg microwave | D121: 8.85 | E121: 6.05 | F121: AK01 | H121: A4330 | I121: Stool collection pouch | K121: 0102102 | L121: AK | M121: 99655 | N121: 02102 | O121: 01 | P121: B | Q121: Z9 | R121: B | S121: 0 | T121: A | U121: 20211
A122: 2023-01-01 | B122: 97026 | C122: Infrared therapy | D122: 8.1 | E122: 5.68 | F122: AK01 | H122: A4331 | I122: Extension drainage tubing | K122: 0102102 | L122: AK | M122: 99656 | N122: 02102 | O122: 01 | P122: B | Q122: Z9 | R122: B | S122: 0 | T122: A | U122: 20211
A123: 2023-01-01 | B123: 97028 | C123: Ultraviolet therapy | D123: 10.23 | E123: 7.25 | F123: AK01 | H123: A4332 | I123: Lube sterile packet | K123: 0102102 | L123: AK | M123: 99657 | N123: 02102 | O123: 01 | P123: B | Q123: Z9 | R123: B | S123: 0 | T123: A | U123: 20211
A124: 2023-01-01 | B124: 97032 | C124: Electrical stimulation | D124: 19.25 | E124: 16.08 | F124: AK01 | H124: A4333 | I124: Urinary cath anchor device | K124: 0102102 | L124: AK | M124: 99658 | N124: 02102 | O124: 01 | P124: B | Q124: Z9 | R124: B | S124: 0 | T124: A | U124: 20211
A125: 2023-01-01 | B125: 97033 | C125: Electric current therapy | D125: 25.35 | E125: 19.38 | F125: AK01 | H125: A4334 | I125: Urinary cath leg strap | K125: 0102102 | L125: AK | M125: 99659 | N125: 02102 | O125: 01 | P125: B | Q125: Z9 | R125: B | S125: 0 | T125: A | U125: 20211
A126: 2023-01-01 | B126: 97034 | C126: Contrast bath therapy | D126: 18.71 | E126: 14.79 | F126: AK01 | H126: A4335 | I126: Incontinence supply | K126: 0102102 | L126: AK | M126: 99660 | N126: 02102 | O126: 01 | P126: B | Q126: Z9 | R126: B | S126: 0 | T126: A | U126: 20211
A127: 2023-01-01 | B127: 97035 | C127: Ultrasound therapy | D127: 18.71 | E127: 14.79 | F127: AK01 | H127: A4336 | I127: Urethral insert | K127: 0102102 | L127: AK | M127: 99661 | N127: 02102 | O127: 01 | P127: B | Q127: Z9 | R127: B | S127: 0 | T127: A | U127: 20211
A128: 2023-01-01 | B128: 97036 | C128: Hydrotherapy | D128: 42.39 | E128: 28.42 | F128: AK01 | H128: A4337 | I128: Incontinent rectal insert | K128: 0102102 | L128: AK | M128: 99662 | N128: 02102 | O128: 01 | P128: B | Q128: Z9 | R128: B | S128: 0 | T128: A | U128: 20211
A129: 2023-01-01 | B129: 97110 | C129: Therapeutic exercises | D129: 38.73 | E129: 30.91 | F129: AK01 | H129: A4338 | I129: Indwelling catheter latex | K129: 0102102 | L129: AK | M129: 99663 | N129: 02102 | O129: 01 | P129: B | Q129: Z9 | R129: B | S129: 0 | T129: A | U129: 20211
A130: 2023-01-01 | B130: 97112 | C130: Neuromuscular reeducation | D130: 44.26 | E130: 34.94 | F130: AK01 | H130: A4340 | I130: Indwelling catheter special | K130: 0102102 | L130: AK | M130: 99664 | N130: 02102 | O130: 01 | P130: B | Q130: Z9 | R130: B | S130: 0 | T130: A | U130: 20211
A131: 2023-01-01 | B131: 97113 | C131: Aquatic therapy/exercises | D131: 47.34 | E131: 35.97 | F131: AK01 | H131: A4344 | I131: Cath indw foley 2 way silicn | K131: =O131&N131 -> 0102102 | L131: AK | M131: 99665 | N131: 02102 | O131: 01 | P131: B | Q131: Z9 | R131: B | S131: 0 | T131: A | U131: 20211
A132: 2023-01-01 | B132: 97116 | C132: Gait training therapy | D132: 38.73 | E132: 30.91 | F132: AK01 | H132: A4346 | I132: Cath indw foley 3 way | K132: 0102102 | L132: AK | M132: 99666 | N132: 02102 | O132: 01 | P132: B | Q132: Z9 | R132: B | S132: 0 | T132: A | U132: 20211
A133: 2023-01-01 | B133: 97124 | C133: Massage therapy | D133: 38.12 | E133: 28.06 | F133: AK01 | H133: A4349 | I133: Disposable male external cat | K133: 0102102 | L133: AK | M133: 99667 | N133: 02102 | O133: 01 | P133: B | Q133: Z9 | R133: B | S133: 0 | T133: A | U133: 20211
A134: 2023-01-01 | B134: 97129 | C134: Ther ivntj 1st 15 min | D134: 31.58 | E134: 28.6 | F134: AK01 | H134: A4351 | I134: Straight tip urine catheter | K134: 0102102 | L134: AK | M134: 99668 | N134: 02102 | O134: 01 | P134: B | Q134: Z9 | R134: B | S134: 0 | T134: A | U134: 20211
A135: 2023-01-01 | B135: 97130 | C135: Ther ivntj ea addl 15 min | D135: 30.19 | E135: 27.4 | F135: AK01 | H135: A4352 | I135: Coude tip urinary catheter | K135: 0102102 | L135: AK | M135: 99669 | N135: 02102 | O135: 01 | P135: B | Q135: Z9 | R135: B | S135: 0 | T135: A | U135: 20211
A136: 2023-01-01 | B136: 97140 | C136: Manual therapy 1/> regions | D136: 35.85 | E136: 28.96 | F136: AK01 | H136: A4353 | I136: Intermittent urinary cath | K136: 0102102 | L136: AK | M136: 99670 | N136: 02102 | O136: 01 | P136: B | Q136: Z9 | R136: B | S136: 0 | T136: A | U136: 20211
A137: 2023-01-01 | B137: 97150 | C137: Group therapeutic procedures | D137: 23.52 | E137: 19.23 | F137: AK01 | H137: A4354 | I137: Cath insertion tray w/bag | K137: 0102102 | L137: AK | M137: 99671 | N137: 02102 | O137: 01 | P137: B | Q137: Z9 | R137: B | S137: 0 | T137: A | U137: 20211
A138: 2023-01-01 | B138: 97161 | C138: Pt eval low complex 20 min | D138: 132.03 | E138: 105.56 | F138: AK01 | H138: A4355 | I138: Bladder irrigation tubing | K138: 0102102 | L138: AK | M138: 99672 | N138: 02102 | O138: 01 | P138: B | Q138: Z9 | R138: B | S138: 0 | T138: A | U138: 20211
A139: 2023-01-01 | B139: 97162 | C139: Pt eval mod complex 30 min | D139: 132.03 | E139: 105.56 | F139: AK01 | H139: A4356 | I139: Ext ureth clmp or compr dvc | K139: 0102102 | L139: AK | M139: 99674 | N139: 02102 | O139: 01 | P139: B | Q139: Z9 | R139: B | S139: 0 | T139: A | U139: 20211
A140: 2023-01-01 | B140: 97163 | C140: Pt eval high complex 45 min | D140: 132.03 | E140: 105.56 | F140: AK01 | H140: A4357 | I140: Bedside drainage bag | K140: 0102102 | L140: AK | M140: 99675 | N140: 02102 | O140: 01 | P140: B | Q140: Z9 | R140: B | S140: 0 | T140: A | U140: 20211
A141: 2023-01-01 | B141: 97164 | C141: Pt re-eval est plan care | D141: 89.87 | E141: 69.74 | F141: AK01 | H141: A4358 | I141: Urinary leg or abdomen bag | K141: 0102102 | L141: AK | M141: 99676 | N141: 02102 | O141: 01 | P141: B | Q141: Z9 | R141: B | S141: 0 | T141: A | U141: 20211
A142: 2023-01-01 | B142: 97165 | C142: Ot eval low complex 30 min | D142: 132.03 | E142: 105.56 | F142: AK01 | H142: A4360 | I142: Disposable ext urethral dev | K142: 0102102 | L142: AK | M142: 99677 | N142: 02102 | O142: 01 | P142: B | Q142: Z9 | R142: B | S142: 0 | T142: A | U142: 20211
A143: 2023-01-01 | B143: 97166 | C143: Ot eval mod complex 45 min | D143: 132.03 | E143: 105.56 | F143: AK01 | H143: A4361 | I143: Ostomy face plate | K143: 0102102 | L143: AK | M143: 99678 | N143: 02102 | O143: 01 | P143: B | Q143: Z9 | R143: B | S143: 0 | T143: A | U143: 20211
A144: 2023-01-01 | B144: 97167 | C144: Ot eval high complex 60 min | D144: 132.03 | E144: 105.56 | F144: AK01 | H144: A4362 | I144: Solid skin barrier | K144: 0102102 | L144: AK | M144: 99679 | N144: 02102 | O144: 01 | P144: B | Q144: Z9 | R144: B | S144: 0 | T144: A | U144: 20211
A145: 2023-01-01 | B145: 97168 | C145: Ot re-eval est plan care | D145: 89.5 | E145: 69.56 | F145: AK01 | H145: A4363 | I145: Ostomy clamp, replacement | K145: 0102102 | L145: AK | M145: 99680 | N145: 02102 | O145: 01 | P145: B | Q145: Z9 | R145: B | S145: 0 | T145: A | U145: 20211
A146: 2023-01-01 | B146: 97530 | C146: Therapeutic activities | D146: 47.17 | E146: 34.87 | F146: AK01 | H146: A4364 | I146: Adhesive, liquid or equal | K146: 0102102 | L146: AK | M146: 99681 | N146: 02102 | O146: 01 | P146: B | Q146: Z9 | R146: B | S146: 0 | T146: A | U146: 20211
A147: 2023-01-01 | B147: 97533 | C147: Sensory integration | D147: 77.16 | E147: 50.88 | F147: AK01 | H147: A4366 | I147: Ostomy vent | K147: 0102102 | L147: AK | M147: 99682 | N147: 02102 | O147: 01 | P147: B | Q147: Z9 | R147: B | S147: 0 | T147: A | U147: 20211
A148: 2023-01-01 | B148: 97535 | C148: Self care mngment training | D148: 42.46 | E148: 32.77 | F148: AK01 | H148: A4367 | I148: Ostomy belt | K148: 0102102 | L148: AK | M148: 99683 | N148: 02102 | O148: 01 | P148: B | Q148: Z9 | R148: B | S148: 0 | T148: A | U148: 20211
A149: 2023-01-01 | B149: 97537 | C149: Community/work reintegration | D149: 41.75 | E149: 33.18 | F149: AK01 | H149: A4368 | I149: Ostomy filter | K149: 0102102 | L149: AK | M149: 99684 | N149: 02102 | O149: 01 | P149: B | Q149: Z9 | R149: B | S149: 0 | T149: A | U149: 20211
A150: 2023-01-01 | B150: 97542 | C150: Wheelchair mngment training | D150: 41.75 | E150: 33.18 | F150: AK01 | H150: A4369 | I150: Skin barrier liquid per oz | K150: 0102102 | L150: AK | M150: 99685 | N150: 02102 | O150: 01 | P150: B | Q150: Z9 | R150: B | S150: 0 | T150: A | U150: 20211
A151: 2023-01-01 | B151: 97597 | C151: Rmvl devital tis 20 cm/< | D151: 121.63 | E151: 81 | F151: AK01 | H151: A4371 | I151: Skin barrier powder per oz | K151: 0102102 | L151: AK | M151: 99686 | N151: 02102 | O151: 01 | P151: B | Q151: Z9 | R151: B | S151: 0 | T151: A | U151: 20211
A152: 2023-01-01 | B152: 97598 | C152: Rmvl devital tis addl 20cm/< | D152: 55.72 | E152: 41.18 | F152: AK01 | H152: A4372 | I152: Skin barrier solid 4x4 equiv | K152: 0102102 | L152: AK | M152: 99687 | N152: 02102 | O152: 01 | P152: B | Q152: Z9 | R152: B | S152: 0 | T152: A | U152: 20211
A153: 2023-01-01 | B153: 97610 | C153: Low frequency non-thermal us | D153: 501.77 | E153: 261.15 | F153: AK01 | H153: A4373 | I153: Skin barrier with flange | K153: 0102102 | L153: AK | M153: 99688 | N153: 02102 | O153: 01 | P153: B | Q153: Z9 | R153: B | S153: 0 | T153: A | U153: 20211
A154: 2023-01-01 | B154: 97750 | C154: Physical performance test | D154: 43.58 | E154: 33.33 | F154: AK01 | H154: A4375 | I154: Drainable plastic pch w fcpl | K154: 0102102 | L154: AK | M154: 99689 | N154: 02102 | O154: 01 | P154: R | Q154: Z9 | R154: R | S154: 0 | T154: A | U154: 20211
A155: 2023-01-01 | B155: 97755 | C155: Assistive technology assess | D155: 50.93 | E155: 41.43 | F155: AK01 | H155: A4376 | I155: Drainable rubber pch w fcplt | K155: 0102102 | L155: AK | M155: 99690 | N155: 02102 | O155: 01 | P155: B | Q155: Z9 | R155: B | S155: 0 | T155: A | U155: 20211
A156: 2023-01-01 | B156: 97760 | C156: Orthotic mgmt&traing 1st enc | D156: 60.66 | E156: 43.14 | F156: AK01 | H156: A4377 | I156: Drainable plstic pch w/o fp | K156: 0102102 | L156: AK | M156: 99691 | N156: 02102 | O156: 01 | P156: B | Q156: Z9 | R156: B | S156: 0 | T156: A | U156: 20211
A157: 2023-01-01 | B157: 97761 | C157: Prosthetic traing 1st enc | D157: 53.2 | E157: 39.41 | F157: AK01 | H157: A4378 | I157: Drainable rubber pch w/o fp | K157: 0102102 | L157: AK | M157: 99692 | N157: 02102 | O157: 01 | P157: B | Q157: Z9 | R157: B | S157: 0 | T157: A | U157: 20211
A158: 2023-01-01 | B158: 97763 | C158: Orthc/prostc mgmt sbsq enc | D158: 65.61 | E158: 45.1 | F158: AK01 | H158: A4379 | I158: Urinary plastic pouch w fcpl | K158: 0102102 | L158: AK | M158: 99693 | N158: 02102 | O158: 01 | P158: B | Q158: Z9 | R158: B | S158: 0 | T158: A | U158: 20211
A159: 2023-01-01 | B159: 98966 | C159: Hc pro phone call 5-10 min | D159: 17.76 | E159: 15.33 | F159: AK01 | H159: A4380 | I159: Urinary rubber pouch w fcplt | K159: 0102102 | L159: AK | M159: 99694 | N159: 02102 | O159: 01 | P159: B | Q159: Z9 | R159: B | S159: 0 | T159: A | U159: 20211
A160: 2023-01-01 | B160: 98967 | C160: Hc pro phone call 11-20 min | D160: 32.91 | E160: 29.37 | F160: AK01 | H160: A4381 | I160: Urinary plastic pouch w/o fp | K160: 0102102 | L160: AK | M160: 99695 | N160: 02102 | O160: 01 | Q160: Z9 | S160: 0 | T160: A | U160: 20211
A161: 2023-01-01 | B161: 98968 | C161: Hc pro phone call 21-30 min | D161: 46.73 | E161: 42.63 | F161: AK01 | H161: A4382 | I161: Urinary hvy plstc pch w/o fp | K161: 0102102 | L161: AK | M161: 99697 | N161: 02102 | O161: 01 | P161: B | Q161: Z9 | R161: B | S161: 0 | T161: A | U161: 20211
A162: 2023-01-01 | B162: 98970 | C162: Qnhp ol dig assmt&mgmt 5-10 | D162: 15.89 | E162: 14.4 | F162: AK01 | H162: A4383 | I162: Urinary rubber pouch w/o fp | K162: 0102102 | L162: AK | M162: 99701 | N162: 02102 | O162: 01 | P162: B | Q162: Z9 | R162: B | S162: 0 | T162: A | U162: 20211
A163: 2023-01-01 | B163: 98971 | C163: Qnhp ol dig assmt&mgmt 11-20 | D163: 28.16 | E163: 25.37 | F163: AK01 | H163: A4384 | I163: Ostomy faceplt/silicone ring | K163: 0102102 | L163: AK | M163: 99702 | N163: 02102 | O163: 01 | P163: B | Q163: Z9 | R163: B | S163: 0 | T163: A | U163: 20211
A164: 2023-01-01 | B164: 98972 | C164: Qnhp ol dig assmt&mgmt 21+ | D164: 43.31 | E164: 39.4 | F164: AK01 | H164: A4385 | I164: Ost skn barrier sld ext wear | K164: 0102102 | L164: AK | M164: 99703 | N164: 02102 | O164: 01 | P164: B | Q164: Z9 | R164: B | S164: 0 | T164: A | U164: 20211
A165: 2023-01-01 | B165: G0281 | C165: Elec stim unattend for press | D165: 15.69 | E165: 12.52 | F165: AK01 | H165: A4387 | I165: Ost clsd pouch w att st barr | K165: 0102102 | L165: AK | M165: 99704 | N165: 02102 | O165: 01 | P165: R | Q165: Z9 | R165: R | S165: 0 | T165: A | U165: 20211
A166: 2023-01-01 | B166: G0283 | C166: Elec stim other than wound | D166: 15.69 | E166: 12.52 | F166: AK01 | H166: A4388 | I166: Drainable pch w ex wear barr | K166: 0102102 | L166: AK | M166: 99705 | N166: 02102 | O166: 01 | P166: B | Q166: Z9 | R166: B | S166: 0 | T166: A | U166: 20211
A167: 2023-01-01 | B167: G0329 | C167: Electromagntic tx for ulcers | D167: 12.95 | E167: 8.1 | F167: AK01 | H167: A4389 | I167: Drainable pch w st wear barr | K167: 0102102 | L167: AK | M167: 99706 | N167: 02102 | O167: 01 | P167: B | Q167: Z9 | R167: B | S167: 0 | T167: A | U167: 20211
A168: 2023-01-01 | B168: G2010 | C168: Remot image submit by pt | D168: 15.69 | E168: 12.52 | F168: AK01 | H168: A4390 | I168: Drainable pch ex wear convex | K168: 0102102 | L168: AK | M168: 99707 | N168: 02102 | O168: 01 | P168: B | Q168: Z9 | R168: B | S168: 0 | T168: A | U168: 20211
A169: 2023-01-01 | B169: G2012 | C169: Brief check in by md/qhp | D169: 18.71 | E169: 15.91 | F169: AK01 | H169: A4391 | I169: Urinary pouch w ex wear barr | K169: 0102102 | L169: AK | M169: 99708 | N169: 02102 | O169: 01 | P169: B | Q169: Z9 | R169: B | S169: 0 | T169: A | U169: 20211
A170: 2023-01-01 | B170: 29126 | C170: Apply forearm splint | D170: 76.52 | E170: 51.23 | F170: AZ00 | H170: A4392 | I170: Urinary pouch w st wear barr | K170: 0102102 | L170: AK | M170: 99709 | N170: 02102 | O170: 01 | P170: B | Q170: Z9 | R170: B | S170: 0 | T170: A | U170: 20211
A171: 2023-01-01 | B171: 29130 | C171: Application of finger splint | D171: 41.38 | E171: 30.61 | F171: AZ00 | H171: A4393 | I171: Urine pch w ex wear bar conv | K171: 0102102 | L171: AK | M171: 99710 | N171: 02102 | O171: 01 | P171: B | Q171: Z9 | R171: B | S171: 0 | T171: A | U171: 20211
A172: 2023-01-01 | B172: 29131 | C172: Application of finger splint | D172: 52.86 | E172: 37.2 | F172: AZ00 | H172: A4394 | I172: Ostomy pouch liq deodorant | K172: 0102102 | L172: AK | M172: 99711 | N172: 02102 | O172: 01 | P172: B | Q172: Z9 | R172: B | S172: 0 | T172: A | U172: 20211
A173: 2023-01-01 | B173: 29505 | C173: Application long leg splint | D173: 87.23 | E173: 57.05 | F173: AZ00 | H173: A4395 | I173: Ostomy pouch solid deodorant | K173: 0102102 | L173: AK | M173: 99712 | N173: 02102 | O173: 01 | P173: B | Q173: Z9 | R173: B | S173: 0 | T173: A | U173: 20211
A174: 2023-01-01 | B174: 29515 | C174: Application lower leg splint | D174: 70.67 | E174: 49.3 | F174: AZ00 | H174: A4396 | I174: Peristomal hernia supprt blt | K174: 0102102 | L174: AK | M174: 99714 | N174: 02102 | O174: 01 | P174: B | Q174: Z9 | R174: B | S174: 0 | T174: A | U174: 20211
A175: 2023-01-01 | B175: 29580 | C175: Application of paste boot | D175: 62.11 | E175: 41.39 | F175: AZ00 | H175: A4397 | I175: Irrigation supply sleeve | K175: 0102102 | L175: AK | M175: 99716 | N175: 02102 | O175: 01 | P175: B | Q175: Z9 | R175: B | S175: 0 | T175: A | U175: 20211
A176: 2023-01-01 | B176: 90901 | C176: Biofeedback train any meth | D176: 40.29 | E176: 27.24 | F176: AZ00 | H176: A4398 | I176: Ostomy irrigation bag | K176: 0102102 | L176: AK | M176: 99720 | N176: 02102 | O176: 01 | P176: B | Q176: Z9 | R176: B | S176: 0 | T176: A | U176: 20211
A177: 2023-01-01 | B177: 92507 | C177: Speech/hearing therapy | D177: 75.89 | E177: 60.55 | F177: AZ00 | H177: A4399 | I177: Ostomy irrig cone/cath w brs | K177: 0102102 | L177: AK | M177: 99721 | N177: 02102 | O177: 01 | P177: B | Q177: Z9 | R177: B | S177: 0 | T177: A | U177: 20211
A178: 2023-01-01 | B178: 92508 | C178: Speech/hearing therapy | D178: 23.55 | E178: 17.51 | F178: AZ00 | H178: A4400 | I178: Ostomy irrigation set | K178: 0102102 | L178: AK | M178: 99722 | N178: 02102 | O178: 01 | P178: B | Q178: Z9 | R178: B | S178: 0 | T178: A | U178: 20211
A179: 2023-01-01 | B179: 92511 | C179: Nasopharyngoscopy | D179: 116.14 | E179: 68.99 | F179: AZ00 | H179: A4402 | I179: Lubricant per ounce | K179: 0102102 | L179: AK | M179: 99723 | N179: 02102 | O179: 01 | P179: B | Q179: Z9 | R179: B | S179: 0 | T179: A | U179: 20211
A180: 2023-01-01 | B180: 92521 | C180: Evaluation of speech fluency | D180: 131.82 | E180: 104.73 | F180: AZ00 | H180: A4404 | I180: Ostomy ring each | K180: 0102102 | L180: AK | M180: 99724 | N180: 02102 | O180: 01 | P180: B | Q180: Z9 | R180: B | S180: 0 | T180: A | U180: 20211
A181: 2023-01-01 | B181: 92522 | C181: Evaluate speech production | D181: 110.17 | E181: 88.63 | F181: AZ00 | H181: A4405 | I181: Nonpectin based ostomy paste | K181: 0102102 | L181: AK | M181: 99725 | N181: 02102 | O181: 01 | P181: B | Q181: Z9 | R181: B | S181: 0 | T181: A | U181: 20211
A182: 2023-01-01 | B182: 92523 | C182: Speech sound lang comprehen | D182: 226.03 | E182: 179.53 | F182: AZ00 | H182: A4406 | I182: Pectin based ostomy paste | K182: 0102102 | L182: AK | M182: 99726 | N182: 02102 | O182: 01 | P182: B | Q182: Z9 | R182: B | S182: 0 | T182: A | U182: 20211
A183: 2023-01-01 | B183: 92524 | C183: Behavral qualit analys voice | D183: 108.86 | E183: 87.98 | F183: AZ00 | H183: A4407 | I183: Ext wear ost skn barr <=4sq" | K183: 0102102 | L183: AK | M183: 99727 | N183: 02102 | O183: 01 | P183: B | Q183: Z9 | R183: B | S183: 0 | T183: A | U183: 20211
A184: 2023-01-01 | B184: 92526 | C184: Oral function therapy | D184: 84.1 | E184: 65.33 | F184: AZ00 | H184: A4408 | I184: Ext wear ost skn barr >4sq" | K184: 0102102 | L184: AK | M184: 99729 | N184: 02102 | O184: 01 | P184: R | Q184: Z9 | R184: R | S184: 0 | T184: A | U184: 20211
A185: 2023-01-01 | B185: 92597 | C185: Oral speech device eval | D185: 71.27 | E185: 57.56 | F185: AZ00 | H185: A4409 | I185: Ost skn barr convex <=4 sq i | K185: 0102102 | L185: AK | M185: 99730 | N185: 02102 | O185: 01 | P185: B | Q185: Z9 | R185: B | S185: 0 | T185: A | U185: 20211
A186: 2023-01-01 | B186: 92605 | C186: Ex for nonspeech device rx | D186: 90.23 | E186: 76.36 | F186: AZ00 | H186: A4410 | I186: Ost skn barr extnd >4 sq | K186: 0102102 | L186: AK | M186: 99731 | N186: 02102 | O186: 01 | P186: B | Q186: Z9 | R186: B | S186: 0 | T186: A | U186: 20211
A187: 2023-01-01 | B187: 92606 | C187: Non-speech device service | D187: 78.48 | E187: 64.12 | F187: AZ00 | H187: A4411 | I187: Ost skn barr extnd =4sq | K187: 0102102 | L187: AK | M187: 99732 | N187: 02102 | O187: 01 | P187: B | Q187: Z9 | R187: B | S187: 0 | T187: A | U187: 20211
A188: 2023-01-01 | B188: 92607 | C188: Ex for speech device rx 1hr | D188: 122.59 | E188: 93.22 | F188: AZ00 | H188: A4412 | I188: Ost pouch drain high output | K188: 0102102 | L188: AK | M188: 99733 | N188: 02102 | O188: 01 | P188: B | Q188: Z9 | R188: B | S188: 0 | T188: A | U188: 20211
A189: 2023-01-01 | B189: 92608 | C189: Ex for speech device rx addl | D189: 48.12 | E189: 36.21 | F189: AZ00 | H189: A4413 | I189: 2 pc drainable ost pouch | K189: 0102102 | L189: AK | M189: 99734 | N189: 02102 | O189: 01 | P189: B | Q189: Z9 | R189: B | S189: 0 | T189: A | U189: 20211
A190: 2023-01-01 | B190: 92609 | C190: Use of speech device service | D190: 102.25 | E190: 77.12 | F190: AZ00 | H190: A4414 | I190: Ost sknbar w/o conv<=4 sq in | K190: 0102102 | L190: AK | M190: 99736 | N190: 02102 | O190: 01 | P190: B | Q190: Z9 | R190: B | S190: 0 | T190: A | U190: 20211
A191: 2023-01-01 | B191: 92610 | C191: Evaluate swallowing function | D191: 84.05 | E191: 64.63 | F191: AZ00 | H191: A4415 | I191: Ost skn barr w/o conv >4 sqi | K191: 0102102 | L191: AK | M191: 99737 | N191: 02102 | O191: 01 | P191: B | Q191: Z9 | R191: B | S191: 0 | T191: A | U191: 20211
A192: 2023-01-01 | B192: 95851 | C192: Range of motion measurements | D192: 20.72 | E192: 13.22 | F192: AZ00 | H192: A4416 | I192: Ost pch clsd w barrier/filtr | K192: 0102102 | L192: AK | M192: 99738 | N192: 02102 | O192: 01 | P192: B | Q192: Z9 | R192: B | S192: 0 | T192: A | U192: 20211
A193: 2023-01-01 | B193: 96105 | C193: Assessment of aphasia | D193: 96.46 | E193: 79.33 | F193: AZ00 | H193: A4417 | I193: Ost pch w bar/bltinconv/fltr | K193: 0102102 | L193: AK | M193: 99739 | N193: 02102 | O193: 01 | P193: B | Q193: Z9 | R193: B | S193: 0 | T193: A | U193: 20211
A194: 2023-01-01 | B194: 96110 | C194: Developmental screen w/score | D194: 10.41 | E194: 5.35 | F194: AZ00 | H194: A4418 | I194: Ost pch clsd w/o bar w filtr | K194: 0102102 | L194: AK | M194: 99740 | N194: 02102 | O194: 01 | P194: B | Q194: Z9 | R194: B | S194: 0 | T194: A | U194: 20211
A195: 2023-01-01 | B195: 96112 | C195: Devel tst phys/qhp 1st hr | D195: 124.75 | E195: 107.78 | F195: AZ00 | H195: A4419 | I195: Ost pch for bar w flange/flt | K195: =O195&N195 -> 0102102 | L195: AK | M195: 99741 | N195: 02102 | O195: 01 | P195: B | Q195: Z9 | R195: B | S195: 0 | T195: A | U195: 20211
A196: 2023-01-01 | B196: 96113 | C196: Devel tst phys/qhp ea addl | D196: 59 | E196: 50.02 | F196: AZ00 | H196: A4420 | I196: Ost pch clsd for bar w lk fl | K196: 0102102 | L196: AK | M196: 99742 | N196: 02102 | O196: 01 | P196: B | Q196: Z9 | R196: B | S196: 0 | T196: A | U196: 20211
A197: 2023-01-01 | B197: 96116 | C197: Nubhvl xm phys/qhp 1st hr | D197: 91.78 | E197: 78.56 | F197: AZ00 | H197: A4421 | I197: Ostomy supply misc | K197: 0102102 | L197: AK | M197: 99743 | N197: 02102 | O197: 01 | P197: R | Q197: Z9 | R197: R | S197: 0 | T197: A | U197: 20211
A198: 2023-01-01 | B198: 96125 | C198: Cognitive test by hc pro | D198: 101.44 | E198: 80.4 | F198: AZ00 | H198: A4422 | I198: Ost pouch absorbent material | K198: 0102102 | L198: AK | M198: 99744 | N198: 02102 | O198: 01 | P198: R | Q198: Z9 | R198: R | S198: 0 | T198: A | U198: 20211
A199: 2023-01-01 | B199: 97012 | C199: Mechanical traction therapy | D199: 14.31 | E199: 11.54 | F199: AZ00 | H199: A4423 | I199: Ost pch for bar w lk fl/fltr | K199: 0102102 | L199: AK | M199: 99745 | N199: 02102 | O199: 01 | P199: B | Q199: Z9 | R199: B | S199: 0 | T199: A | U199: 20211
A200: 2023-01-01 | B200: 97016 | C200: Vasopneumatic device therapy | D200: 11.61 | E200: 9 | F200: AZ00 | H200: A4424 | I200: Ost pch drain w bar & filter | K200: 0102102 | L200: AK | M200: 99746 | N200: 02102 | O200: 01 | P200: B | Q200: Z9 | R200: B | S200: 0 | T200: A | U200: 20211
... 4300 more rows
